Cogmind - Beta 17 @@@ ROGUE MODE // 2026.07.11 @ 09:34:26 Player: kite Result: Self-destructed Performance ------------- Evolutions (7) 3500 Regions Visited (34) 6800 Robots Destroyed (388) 1940 Value Destroyed (17423) 17423 Prototype IDs (56) 1120 Alien Tech Used (4) 800 Bonus (12481) 12481 TOTAL SCORE: 44064 Bonus ------- High Alert Combat Kills 2615 Follower Combat Kills 2512 Entered Garrisons 1000 Used RIF Installer 500 Entered DSFs 500 Network Hubs Disabled 200 Aligned with FarCom 300 Acquired ECA 300 Met Zhirov 300 Met R17 at Cetus 500 Found Hidden Lab 3000 Met R17 at Research 2000 Friendly Fire -1246 Cogmind --------- Core Integrity 619/1300 Matter 300/300 Energy 100/100 System Corruption 23% Temperature Cool (0) Movement Walking (45) Location -3/Garrison Parts ------- > --- POWER (2) -------- (None) > --- PROPULSION (7) --- Potential Leg Potential Leg > --- UTILITY (8) ------ High-capacity Storage Unit Improved Targeting Computer Advanced Target Analyzer Graphene Brace Field Recycling Unit > --- WEAPON (4) ------- Hypervelocity Coil Gun > --- INVENTORY (20) --- Light Antimatter Reactor Light Antimatter Reactor Light Antimatter Reactor Flexi-carbon Leg Myomer Leg Experimental Myomer Leg Terrain Scanner AEGIS Remote Shield Experimental System Shield Quantum Router Advanced Corruption Screen Core Reset Matrix Gamma Bomb Array Tiamat Missile Launcher Advanced Remote Datajack Peak State ------------ > --- POWER ------------ Light Antimatter Reactor Light Quantum Reactor > --- PROPULSION ------- Myomer Leg Myomer Leg Myomer Leg Myomer Leg Myomer Leg Biometal Leg Experimental Myomer Leg > --- UTILITY ---------- High-capacity Storage Unit Improved Targeting Computer Advanced Target Analyzer Transmission Jammer Advanced Powered Armor Graphene Brace AEGIS Remote Shield Field Recycling Unit > --- WEAPON ----------- Improved KE Penetrator Improved KE Penetrator Railgun Hypervelocity Railgun > --- INVENTORY -------- Light Antimatter Reactor Light Antimatter Reactor Light Antimatter Reactor Flexi-carbon Leg Flexi-carbon Leg Myomer Leg Myomer Leg Potential Leg Potential Leg Terrain Scanner Experimental System Shield Quantum Router Advanced Corruption Screen Core Reset Matrix Hypervelocity Coil Gun Railgun Gamma Bomb Array Tiamat Missile Launcher Advanced Remote Datajack [Rating: 152] Favorites ----------- Power Quantum Reactor Engine Ion Engine Power Core Micro Nuclear Core Reactor Quantum Reactor Propulsion Light Treads Treads Light Treads Leg Myomer Leg Utility High-capacity Storage Unit Device Transmission Jammer Storage High-capacity Storage Unit Processor Advanced Melee Analysis Suite Hackware Improved Hacking Suite Protection Centrium Medium Armor Plating Weapon Improved KE Penetrator Energy Gun EM Pulse Gun Energy Cannon Nova Cannon Ballistic Gun Improved KE Penetrator Ballistic Cannon Improved Light Cannon Launcher Rocket Launcher Special Weapon Remote Datajack Impact Weapon Heavy Flail Slashing Weapon Phasing Sabre Special Melee Weapon Advanced Datajack Build | -11 -10 -10 -9 -9 -9 -8 -8 -8 -8 -8 -8 -7 -7 -7 -7 -6 -6 -6 -6 -6 -6 -6 -5 -5 -5 -5 -4 -4 -4 -4 -3 -3 -3 -3 ------- Run | Yrd Mat Min Mat Min Exi Min Mat Gar Mat Gar Mat Fac Was Fac DSF Fac Gar Fac Ext Cet Arc Hub Fac Upp Upp Zhi Pro Fac Arm Lab Res Gar Res Gar Slots Evolved 14 | . . . 2 . . . 2 . . . . 2 . . . 2 . . . . . . 2 . . . . 2 . . 2 . . . Power 1 | . . . . . . . . . . . . . . . . . . . . . . . . . . . . . . . 1 . . . Propulsion 5 | . . . 2 . . . . . . . . 2 . . . . . . . . . . . . . . . . . . 1 . . . Utility 6 | . . . . . . . 1 . . . . . . . . 1 . . . . . . 2 . . . . 2 . . . . . . Weapon 2 | . . . . . . . 1 . . . . . . . . 1 . . . . . . . . . . . . . . . . . . Parts Attached 313 | 6 11 . 4 . 3 . 31 8 . 2 7 24 10 . 2 3 14 4 17 19 3 . 14 9 1 7 8 19 13 1 40 14 11 8 Power 35 | 1 . . . . . . 4 . . . 3 2 3 . . . 3 . . 3 1 . 1 . . 1 . . 1 . 5 4 1 2 Engine 5 | 1 . . . . . . 1 . . . 1 1 . . . . 1 . . . . . . . . . . . . . . . . . Core 9 | . . . . . . . 3 . . . 2 1 . . . . . . . . 1 . . . . . . . . . 2 . . . Reactor 21 | . . . . . . . . . . . . . 3 . . . 2 . . 3 . . 1 . . 1 . . 1 . 3 4 1 2 Propulsion 111 | 2 2 . 4 . 1 . 9 7 . 1 4 7 4 . . . 5 . 6 7 . . 5 2 . 3 7 9 3 . 16 4 . 3 Treads 54 | 2 2 . 4 . 1 . 3 4 . 1 4 2 4 . . . 5 . 6 7 . . 4 2 . 3 . . . . . . . . Leg 57 | . . . . . . . 6 3 . . . 5 . . . . . . . . . . 1 . . . 7 9 3 . 16 4 . 3 Wheel . | . . . . . . . . . . . . . . . . . . . . . . . . . . . . . . . . . . . Hover . | . . . . . . . . . . . . . . . . . . . . . . . . . . . . . . . . . . . Flight . | . . . . . . . . . . . . . . . . . . . . . . . . . . . . . . . . . . . Utility 97 | 1 3 . . . 1 . 8 . . . . 11 2 . . 2 4 1 6 3 1 . 6 6 1 3 1 8 5 1 12 3 7 1 Device 28 | . . . . . . . 1 . . . . 4 . . . 1 . 1 . 1 . . . 3 . 1 . 3 . 1 4 3 4 1 Storage 8 | 1 2 . . . 1 . 1 . . . . . 1 . . . . . . . . . 1 . . 1 . . . . . . . . Processor 22 | . . . . . . . 4 . . . . 5 . . . . 1 . 2 1 . . 3 . . . . 1 . . 4 . 1 . Hackware 10 | . 1 . . . . . . . . . . . 1 . . . . . . . . . 1 . . . . 4 2 . . . 1 . Protection 29 | . . . . . . . 2 . . . . 2 . . . 1 3 . 4 1 1 . 1 3 1 1 1 . 3 . 4 . 1 . Artifact . | . . . . . . . . . . . . . . . . . . . . . . . . . . . . . . . . . . . Weapon 70 | 2 6 . . . 1 . 10 1 . 1 . 4 1 . 2 1 2 3 5 6 1 . 2 1 . . . 2 4 . 7 3 3 2 Energy Gun 4 | 2 2 . . . . . . . . . . . . . . . . . . . . . . . . . . . . . . . . . Energy Cannon 1 | . . . . . . . . . . . . . . . . . . . . . . . . . . . . . . . 1 . . . Ballistic Gun 23 | . . . . . . . 7 . . . . 1 . . . . . . . . . . . . . . . . 4 . 4 3 2 2 Ballistic Cannon 4 | . 2 . . . 1 . . . . . . 1 . . . . . . . . . . . . . . . . . . . . . . Launcher 5 | . 1 . . . . . . 1 . 1 . 1 . . . . . . . . . . . . . . . . . . . . 1 . Special Weapon 2 | . . . . . . . . . . . . 1 . . . . . . . . . . . . . . . 1 . . . . . . Impact Weapon 6 | . 1 . . . . . 1 . . . . . 1 . . . . . . 1 . . . 1 . . . . . . 1 . . . Slashing Weapon 24 | . . . . . . . 2 . . . . . . . 2 1 2 2 5 5 1 . 2 . . . . 1 . . 1 . . . Piercing Weapon . | . . . . . . . . . . . . . . . . . . . . . . . . . . . . . . . . . . . Special Melee Weapon 1 | . . . . . . . . . . . . . . . . . . 1 . . . . . . . . . . . . . . . . Unidentified Prototypes 26 | . . . . . . . 1 . . . . 4 . . . . . . . 2 . . 1 . . 4 . . 2 3 6 . 3 . Corrupted Parts 2 | . . . . . . . . . . . . . . . . . . . . . . . . . . 1 1 . . . . . . . System Corruption 11 | . . . . . . . . . . . . . . . . . . . . . . . . . . 1 10 . . . . . . . Parts Lost 120 | . . . . 2 . . 7 4 2 2 1 6 . . . . 4 . 17 10 1 2 . 4 1 . 13 16 . . 3 4 3 18 Power 6 | . . . . . . . . . . . . . . . . . 1 . . . . . . . . . . 1 . . . 1 1 2 Propulsion 57 | . . . . 1 . . 6 4 1 1 1 4 . . . . . . 7 7 . 1 . 2 1 . 10 4 . . . . . 7 Utility 27 | . . . . . . . 1 . . . . 2 . . . . 1 . 4 1 . . . . . . 3 7 . . 2 2 1 3 Weapon 30 | . . . . 1 . . . . 1 1 . . . . . . 2 . 6 2 1 1 . 2 . . . 4 . . 1 1 1 6 Highest Loss Streak 13 | . . . . 2 . . 3 2 1 2 1 5 . . . . 2 . 12 9 1 1 . 2 1 . 8 8 . . 2 3 2 13 To Critical Strikes 5 | . . . . . . . . 1 . . . . . . . . . . 1 3 . . . . . . . . . . . . . . Average Backups 17 | 2 8 10 9 10 8 10 16 19 19 18 19 18 19 18 12 12 13 15 16 18 18 19 22 24 24 24 18 18 16 19 19 18 19 18 Power 1 | . 1 1 1 1 1 1 2 1 1 1 1 . . 1 . . . 1 1 . 1 1 1 2 2 1 1 1 . 1 . 1 1 2 Propulsion 5 | 1 2 3 2 2 2 3 3 4 5 4 5 5 7 9 4 4 6 7 4 3 5 7 7 9 9 9 4 6 3 3 4 7 8 5 Utility 6 | . . 2 2 2 2 3 7 11 12 12 12 10 7 6 3 3 3 3 5 8 8 8 9 10 11 10 9 5 5 4 5 4 4 4 Weapon 3 | . 4 4 4 4 3 3 3 2 1 1 . 2 3 1 4 5 3 3 3 4 3 3 3 1 1 1 1 2 4 7 5 3 4 3 Tool/Special . | . . . . . . . . . . . . . . . . . . . . . . . . . . . . . . . . . . . Unused Backups 91 | . 7 . 2 . 1 . 10 1 . . 2 7 5 . 4 1 4 1 6 1 3 . 3 . 1 1 2 4 6 2 7 1 2 7 Power 5 | . . . . . . . 2 . . . 1 . . . . . . . . . . . . . . . 1 . . . 1 . . . Propulsion 20 | . . . 2 . . . . 1 . . . 1 2 . . 1 2 1 1 . . . 1 . . 1 1 2 . . 1 . 1 2 Utility 40 | . 2 . . . 1 . 2 . . . 1 5 1 . 4 . 2 . 1 1 3 . 2 . 1 . . 2 5 1 3 1 . 2 Weapon 23 | . 5 . . . . . 5 . . . . 1 2 . . . . . 4 . . . . . . . . . 1 1 2 . 1 1 Tool/Special 3 | . . . . . . . 1 . . . . . . . . . . . . . . . . . . . . . . . . . . 2 Average Slot Usage (%) 88 | . 97 100 96 86 95 100 93 99 98 89 90 91 78 76 70 64 64 80 82 84 85 85 78 84 87 92 96 90 90 94 99 99 99 95 Engine 2 | . 14 14 11 11 11 11 2 . . . . 5 . . . . 2 . . . . . . . . . . . . . . . . . Core 1 | . . . . . . . 6 9 9 9 8 1 . . . . . . . . 1 . . . . . . . . . 3 . . . Reactor 3 | . . . . . . . . . . . . . 6 7 7 6 3 6 6 6 4 6 5 5 5 5 5 5 4 5 4 8 8 8 Treads 20 | . 28 28 41 37 41 44 30 18 35 23 35 29 14 23 23 20 22 33 32 33 26 25 21 20 22 28 6 . . . . . . . Leg 11 | . . . . . . . 2 17 . 10 . 11 16 . . . . . . . . . . . . . 25 30 30 31 32 33 33 31 Device 4 | . . . . . . . . . . . . 4 1 . . . . 1 . 1 5 13 8 3 5 5 5 10 . . 8 14 15 16 Storage 6 | . 14 14 11 11 11 11 9 9 9 9 9 7 7 7 7 6 6 6 6 6 6 6 5 5 5 5 5 5 5 5 4 4 4 4 Processor 7 | . . . . . . . 7 18 18 18 18 6 7 7 7 6 6 6 8 6 6 6 9 11 11 11 11 6 3 . 5 9 13 9 Hackware 4 | . 11 14 11 11 11 11 4 . . . . . 5 7 7 6 . . . . . . 2 2 . . . 8 22 21 10 4 2 . Protection 4 | . . . . . . . 4 . . . . 1 . . . 4 7 10 8 6 6 . 4 9 11 10 10 2 6 10 5 3 . 3 Ballistic Gun 4 | . . . . . . . 9 . . . . 1 . . . . . . . . . . . . . . . . 5 15 17 18 18 17 Ballistic Cannon 2 | . 11 28 22 13 19 22 7 . . . . 1 . . . . . . . . . . . . . . . . . . . . . . Impact Weapon 2 | . . . . . . . 3 5 8 7 9 7 9 15 6 . . . . 2 . . 4 . 5 5 5 5 . . . . . . Slashing Weapon 9 | . . . . . . . 4 18 18 10 9 6 7 7 10 12 12 13 18 18 25 26 11 22 17 17 17 14 8 4 . . . . Peak Build Rating 152 | 6 12 12 14 15 17 17 37 36 30 29 30 40 70 70 75 84 83 73 79 100 100 92 107 117 115 108 112 117 114 127 149 147 148 152 Average Rating 74 | 4 9 12 13 12 14 17 27 32 29 28 29 34 58 70 73 81 75 70 73 70 95 91 98 109 114 99 101 102 98 114 138 143 140 142 On Entrance 65 | . 6 12 12 14 12 17 17 36 30 29 29 29 40 70 70 75 82 70 69 79 100 92 83 107 114 96 94 107 53 107 111 141 146 146 Avg Prop Armor Cover (%) 10 | . . . . . . . 6 16 . 8 6 5 7 . 22 20 12 . . . . . . . . . . 7 . . . . 3 . Naked Turns . | . . . . . . . . . . . . . . . . . . . . . . . . . . . . . . . . . . . Heaviest Build 134 | 13 23 23 23 23 53 53 93 54 53 54 56 67 63 63 65 68 86 74 85 87 88 76 121 131 130 130 128 91 87 87 122 119 121 134 Greatest Support 210 | 40 40 40 80 80 83 83 83 80 80 60 82 122 210 210 210 70 210 173 183 210 210 210 203 206 206 196 172 145 135 149 179 181 181 185 Greatest Overweight (x) 6 | . . . . . . . 1 1 . 1 . 2 . . . . 1 . . 1 . . . . 1 . 6 1 . . . . . . Average Overweight (x) . | . . . . . . . . . . . . . . . . . . . . . . . . . . . . . . . . . . . Largest Inventory Capacity 25 | 8 10 10 10 10 20 20 20 20 20 20 20 20 20 20 20 20 20 20 20 20 20 20 25 25 25 25 25 20 20 20 20 20 20 20 Average Capacity 19 | 7 9 10 10 10 11 20 20 20 20 20 20 20 20 20 20 20 20 20 20 20 20 20 23 25 25 25 22 20 20 20 20 20 20 20 Most Carried 25 | 4 10 10 10 10 11 10 20 20 20 19 20 20 20 20 20 20 20 20 20 20 20 20 25 25 25 25 25 20 20 20 20 20 20 20 Average Carried 18 | 2 8 10 9 9 8 10 16 19 19 18 19 18 19 20 19 19 19 19 17 18 19 20 22 24 24 24 18 18 16 19 19 18 19 18 Final Capacity 25 | 8 10 10 10 10 20 20 20 20 20 20 20 20 20 20 20 20 20 20 20 20 20 20 25 25 25 25 20 20 20 20 20 20 20 20 Final Carried 25 | 4 10 10 10 10 10 10 19 20 19 18 20 20 20 20 20 20 20 20 20 19 20 20 24 24 25 25 20 17 18 18 18 20 20 15 Class Distribution -------------------- 39% | Scavenger-Gladiator 11% | Commander-Gladiator 8% | Scavenger-Skirmisher 7% | Gladiator 6% | Mutant 5% | Scavenger-Mutant 4% | Hacker-Gladiator 4% | Hacker-Tank 4% | Scavenger-Tank 3% | Scavenger-Gunner Dominant Class ---------------- Mutant | -10/Materials Mutant | -10/Mines Scavenger-Mutant | -9/Materials Scavenger-Mutant | -9/Mines Scavenger-Mutant | -9/Exiles Scavenger-Mutant | -8/Mines Scavenger-Skirmisher | -8/Materials Scavenger-Gladiator | -8/Garrison Scavenger-Gladiator | -8/Materials Scavenger-Gladiator | -8/Garrison Scavenger-Gladiator | -8/Materials Scavenger-Gladiator | -7/Factory Scavenger-Gladiator | -7/Waste Scavenger-Gladiator | -7/Factory Scavenger-Gladiator | -7/DSF Scavenger-Gladiator | -6/Factory Scavenger-Gladiator | -6/Garrison Commander-Gladiator | -6/Factory Commander-Gladiator | -6/Extension Scavenger-Gladiator | -6/Cetus Scavenger-Gladiator | -6/Archives Scavenger-Gladiator | -6/Hub_04(d) Scavenger-Gladiator | -5/Factory Scavenger-Gladiator | -5/Upper Caves Scavenger-Gladiator | -5/Upper Caves Scavenger-Gladiator | -5/Zhirov Scavenger-Gladiator | -4/Proximity Caves Hacker-Gladiator | -4/Factory Hacker-Gladiator | -4/Armory Hacker-Tank | -4/Lab Hacker-Tank | -3/Research Scavenger-Tank | -3/Garrison Scavenger-Skirmisher | -3/Research Scavenger-Gunner | -3/Garrison Resources | -11 -10 -10 -9 -9 -9 -8 -8 -8 -8 -8 -8 -7 -7 -7 -7 -6 -6 -6 -6 -6 -6 -6 -5 -5 -5 -5 -4 -4 -4 -4 -3 -3 -3 -3 ----------- Run | Yrd Mat Min Mat Min Exi Min Mat Gar Mat Gar Mat Fac Was Fac DSF Fac Gar Fac Ext Cet Arc Hub Fac Upp Upp Zhi Pro Fac Arm Lab Res Gar Res Gar Matter Collected 10467 | 169 283 54 536 76 . . 1619 197 49 198 421 402 75 . 71 38 95 29 221 160 140 . 170 195 47 . 475 197 120 . 1918 1135 693 684 Remotely . | . . . . . . . . . . . . . . . . . . . . . . . . . . . . . . . . . . . Salvage Created 19281 | . 441 . 400 34 . . 2357 556 90 72 373 1311 . . 15 229 850 29 993 277 531 836 317 859 354 127 812 917 176 . 2327 2219 1085 694 Parts 929 | . 37 . 25 3 . . 135 33 4 8 24 68 . . . 10 44 3 33 12 24 28 13 27 15 1 33 41 9 . 120 91 54 34 Haulers Intercepted 9 | . 1 . 1 . . . 3 . . . . 2 . . . . . . . . . 1 . . . . . 1 . . . . . . Recyclers Shooed 5 | . . . 1 . . . . . . . 1 . . . . . . . . . . . . . . . . . . . 1 . 2 . Parts Field Recycled 65 | . . . . . . . . . . . . . . . . . . . . . . . . . . . . . . . 15 13 11 26 Retrieved Matter 397 | . . . . . . . . . . . . . . . . . . . . . . . . . . . . . . . 95 57 51 194 Parts Self-Destructed 69 | . . . . . . . . . . . . . . . . . . . . . . . . 23 9 . 37 . . . . . . . Prevented 1 | . . . . . . . . . . . . . . . . . . . . . . . . . . . 1 . . . . . . . Parts Restored . | . . . . . . . . . . . . . . . . . . . . . . . . . . . . . . . . . . . Kills | -11 -10 -10 -9 -9 -9 -8 -8 -8 -8 -8 -8 -7 -7 -7 -7 -6 -6 -6 -6 -6 -6 -6 -5 -5 -5 -5 -4 -4 -4 -4 -3 -3 -3 -3 ------- Run | Yrd Mat Min Mat Min Exi Min Mat Gar Mat Gar Mat Fac Was Fac DSF Fac Gar Fac Ext Cet Arc Hub Fac Upp Upp Zhi Pro Fac Arm Lab Res Gar Res Gar Combat Hostiles Destroyed 279 | . 10 . 7 5 . . 36 18 2 8 10 10 . . . 3 18 . 5 3 4 2 5 13 6 . 17 12 2 . 27 36 11 9 Melee 123 | . . . . . . . 14 6 . 1 6 8 . . . 3 18 . 5 3 4 2 5 13 5 . 16 11 2 . . . . 1 Guns 101 | . 5 . . . . . 14 . . . . . . . . . . . . . . . . . . . . . . . 27 36 11 8 Cannons 15 | . . . 7 3 . . 5 . . . . . . . . . . . . . . . . . . . . . . . . . . . AOE 29 | . 4 . . 2 . . . 12 1 7 3 . . . . . . . . . . . . . . . . . . . . . . . Classes Destroyed 23 | . 6 . 3 1 . . 6 . . 1 . 1 . . . . 1 . . . . 1 . 1 . . . . . . 1 1 . . Worker 25 | . . . 1 . . . 10 . . . . 3 . . . 1 . . . . . 4 . . . . . 1 . . 2 . 3 . Builder 19 | . . . . . . . 4 . 1 . . 5 . . . . . 1 . . . 3 1 . . . . 2 . . 2 . . . Tunneler 6 | . . . . . . . 4 . . . . 1 . . . . . . . . . . . . . . . 1 . . . . . . Hauler 9 | . 1 . 1 . . . 3 . . . . 2 . . . . . . . . . 1 . . . . . 1 . . . . . . Recycler 28 | . 1 . 2 . . . 3 . . . 1 6 . . . . . . 5 . . 2 1 . . . . . . . 4 . 3 . Carrier 1 | . . . . . . . . . . . . . . . . . . . . . . 1 . . . . . . . . . . . . Mechanic 1 | . . . . . . . . . . . . 1 . . . . . . . . . . . . . . . . . . . . . . Operator 9 | . 1 . . . . . 1 . . . . . . . . . . . . . 6 . . . . . . . 1 . . . . . Watcher 9 | . 3 . . . . . 2 . . . . 2 . . . 1 . . 1 . . . . . . . . . . . . . . . Swarmer 72 | . 6 . 1 2 . . 3 6 . 4 5 . . . . . 10 . . . . . 4 2 . . 9 2 . . 5 8 4 1 Cutter 4 | . . . . . . . . . . . . . . . . . . . . . . . . . . . . . . . . 4 . . Grunt 106 | . 4 . 4 . . . 19 4 2 . 2 6 . . . 1 2 . 3 . . 2 . 6 3 . 7 4 . . 15 15 2 5 Brawler 7 | . . . 1 . . . . 1 . . . 1 . . . . . . . . . . . 3 . . . . . . . 1 . . Duelist 4 | . . . . . . . 1 . . . . . . . . . . . . . . . . . . . 1 1 . . . 1 . . Protector 1 | . . . . . . . 1 . . . . . . . . . . . . . . . . . . . . . . . . . . . Sentry 42 | . . . 1 . . . 9 5 . 1 3 1 . . . . 3 . 2 . 4 . 1 2 . . . 3 2 . . 2 . 3 Specialist 2 | . . . . . . . 2 . . . . . . . . . . . . . . . . . . . . . . . . . . . Hunter 15 | . . . . . . . 1 2 . . . . . . . . 2 . . . . . . . . . . . . . 5 5 . . Programmer 14 | . . . . . . . . . . 3 . 2 . . . 1 . . . . . . . . . . . 2 . . 1 . 5 . Behemoth 1 | . . . . . . . . . . . . . . . . . 1 . . . . . . . . . . . . . . . . . Cetus Guard 3 | . . . . . . . . . . . . . . . . . . . . 3 . . . . . . . . . . . . . . Striker 1 | . . . . . . . . . . . . . . . . . . . . . . . . . . . . . . . 1 . . . Samaritan 1 | . . . . . . . . . . . . . . . . . . . . . . . . 1 . . . . . . . . . . Assembled 3 | . . . . 3 . . . . . . . . . . . . . . . . . . . . . . . . . . . . . . Thug 7 | . . . . . . . . 2 . . . . . . . 1 . . . 1 . . . . 3 . . . . . . . . . Infiltrator 2 | . . . . . . . . . . . . . . . . . . . . . . 2 . . . . . . . . . . . . Best Kill Streak 12 | . 3 . 4 3 . . 10 9 2 7 3 6 . . . 2 3 1 4 3 3 12 4 7 3 . 7 2 1 . 6 5 7 3 Combat Bots Only 9 | . 3 . 3 3 . . 4 9 2 7 3 5 . . . 2 3 . 2 3 2 1 4 7 3 . 7 2 1 . 6 5 5 3 Max Kills in Single Turn 8 | . 2 . 1 2 . . 2 2 1 3 2 1 . . . 1 2 1 1 1 1 8 1 1 1 . 1 1 1 . 2 2 1 1 Gunslinging 1 | . . . . . . . . . . . . . . . . . . . . . . . . . . . . . . . 1 . . . Exploded 3 | . 2 . . 2 . . . 2 1 3 2 . . . . . . . . . . . . . . . . . . . . . . . Melee 2 | . . . . . . . 1 1 . 1 1 1 . . . 1 2 . 1 1 1 1 1 1 1 . 1 1 1 . . . . 1 Uniques/NPCs Destroyed . | . . . . . . . . . . . . . . . . . . . . . . . . . . . . . . . . . . . Combat | -11 -10 -10 -9 -9 -9 -8 -8 -8 -8 -8 -8 -7 -7 -7 -7 -6 -6 -6 -6 -6 -6 -6 -5 -5 -5 -5 -4 -4 -4 -4 -3 -3 -3 -3 -------- Run | Yrd Mat Min Mat Min Exi Min Mat Gar Mat Gar Mat Fac Was Fac DSF Fac Gar Fac Ext Cet Arc Hub Fac Upp Upp Zhi Pro Fac Arm Lab Res Gar Res Gar Hostile Shots Fired 2859 | . 45 . 16 20 . . 160 65 8 34 31 119 . . . 9 282 . 339 68 20 41 28 81 54 . 293 197 20 . 205 285 90 349 Missed 932 | . 11 . 7 1 . . 33 16 1 13 6 47 . . . 2 76 . 99 10 4 16 5 25 13 . 86 85 5 . 66 132 36 137 Hits 1927 | . 34 . 9 19 . . 127 49 7 21 25 72 . . . 7 206 . 240 58 16 25 23 56 41 . 207 112 15 . 139 153 54 212 Melee 39 | . . . . . . . 2 . . . . 12 . . . . . . . . . . . 4 . . 3 3 . . 7 7 . 1 Projectile 1888 | . 34 . 9 19 . . 125 49 7 21 25 60 . . . 7 206 . 240 58 16 25 23 52 41 . 204 109 15 . 132 146 54 211 AOE 14 | . . . . 12 . . . . . . . . . . . . . . . . . . . . . . . . . . . 2 . . Critical Strikes 88 | . 2 . 1 . . . 5 2 1 1 1 1 . . . 2 1 . 3 12 1 . . 4 6 . 12 8 1 . 5 5 3 11 Actively Blocked 8 | . . . . . . . . . . . . . . . . 1 . . . . . . . . . . 1 . . . 1 . . 5 Part Disruptions 2 | . . . . . . . . . . . . . . . . . . . . . . . . . . . . 1 . . . . 1 . Damage Taken 29298 | . 421 . 110 580 . . 2065 693 120 317 311 1138 . 69 . 116 2770 . 2684 1740 380 499 443 1127 620 . 3211 2281 351 . 1613 1551 641 3447 Core 2591 | . 60 . 35 141 . . 274 54 . 109 36 96 . 26 . . 96 . 163 113 25 101 40 66 29 . 273 147 115 . 131 93 37 331 Absorbed by Shields 4851 | . . . . . . . . . . . . . . . . . . . . . . . . . . . . . . . 1539 1433 573 1306 Reduced by Siege Mode 15 | . . . . . . . . . . . . . . . . . 8 . . . . . . . 7 . . . . . . . . . Redirected to Shielding 461 | . . . . . . . . . . . . . . . . 35 . . . . . . . . . . 155 . 135 . 136 . . . Ignored by Resistances 1033 | . . . . . . . . . . . . . . . . 8 . . . . . . . 110 205 . 626 84 . . . . . . Regen/Repaired (Parts) 1339 | . . . . . . . 205 . . . . . 212 . . . 827 . . . . . . . . . . . . . . . 95 . Core Remaining (%) 65 | 100 . 76 . . . 56 . . . . 14 . . . 82 . . . . . . 41 . . . . 59 . . 96 . . . . Volleys Fired 458 | 1 45 . 28 7 . . 72 17 2 14 2 3 . . . . . . . . . . . . . . . 1 1 1 89 92 41 42 Largest 4 | 2 2 . 2 2 . . 3 1 1 1 1 1 . . . . . . . . . . . . . . . 1 2 4 4 4 4 4 Hottest 146 | 90 90 . 66 66 . . 99 33 33 33 33 5 . . . . . . . . . . . . . . . 7 66 132 146 134 134 143 Shots Fired 1407 | 2 85 . 56 12 . . 216 17 2 15 2 3 . . . . . . . . . . . . . . . 1 2 4 337 352 157 144 Gun 1223 | 2 66 . . . . . 165 . . . . . . . . . . . . . . . . . . . . . 2 4 332 352 156 144 Cannon 138 | . 16 . 56 10 . . 51 . . . . . . . . . . . . . . . . . . . . . . . 5 . . . Launcher 42 | . 3 . . 2 . . . 17 2 15 2 . . . . . . . . . . . . . . . . . . . . . 1 . Special 4 | . . . . . . . . . . . . 3 . . . . . . . . . . . . . . . 1 . . . . . . Kinetic 1288 | . 16 . 56 10 . . 216 . . . . . . . . . . . . . . . . . . . . . 2 4 332 352 156 144 Thermal 25 | 2 18 . . . . . . . . . . . . . . . . . . . . . . . . . . . . . 5 . . . Explosive 42 | . 3 . . 2 . . . 17 2 15 2 . . . . . . . . . . . . . . . . . . . . . 1 . Electromagnetic 48 | . 48 . . . . . . . . . . . . . . . . . . . . . . . . . . . . . . . . . Robot Hit Streak 18 | . 5 . 11 3 . . 10 5 4 5 . 1 . . . . . . . . . . . . . . . 2 . . 18 12 18 11 Robot Miss Streak 10 | . 5 . 3 5 . . 8 3 . 2 2 . . . . . . . . . . . . . . . . . . . 7 10 8 5 Penetration Max 1 | . . . . . . . . . . . . . . . . . . . . . . . . . . . . . . . 1 1 1 1 Secondary Targets 22 | . 1 . . . . . 2 . . . . . . . . . . . . . . . . . . . . . . . 11 7 1 . Max Gunslinging Chain 2 | . 1 . . . . . 1 . . . . . . . . . . . . . . . . . . . . . . . 2 1 1 . Shots Hit Robots 1306 | . 48 . 26 5 . . 186 20 2 10 12 69 . . . 9 65 2 23 20 26 6 16 60 20 8 40 82 10 . 191 181 83 86 Core Hits 579 | . 18 . 12 5 . . 83 33 4 12 10 23 . . . 3 19 . 10 9 12 14 8 23 8 1 21 23 5 . 82 82 30 29 Critical Kills 43 | . . . . . . . 2 . . . . 1 . . . . . . . . . . . . . . . . . . 9 20 5 6 Critical Parts Destroyed 53 | . . . . . . . 2 2 1 . 1 1 . . . . . . . . . . . . . . . 1 . . 11 18 7 9 Critical Strikes 171 | . 1 . 2 . . . 9 2 1 . 2 8 . . . . 13 . 2 1 3 2 4 8 2 . 6 12 4 . 20 39 12 18 Destroy 90 | . . . . . . . 1 . . . . . . . . . . . . . . . . . . . . . . . 20 39 12 18 Blast 4 | . 1 . 2 . . . 1 . . . . . . . . . . . . . . . . . . . . . . . . . . . Smash 12 | . . . . . . . 3 2 1 . 1 2 . . . . . . . . . . 1 . . . . 2 . . . . . . Sever 65 | . . . . . . . 4 . . . 1 6 . . . . 13 . 2 1 3 2 3 8 2 . 6 10 4 . . . . . Melee Attacks 837 | . 1 . . . . . 75 22 1 7 21 106 . . 2 16 119 9 31 22 52 10 32 72 21 9 49 117 29 7 7 . . . Impact 111 | . 1 . . . . . 26 10 1 5 4 21 . . . . . . . . . . 6 . 2 1 7 27 . . . . . . Slashing 725 | . . . . . . . 49 12 . 2 17 85 . . 2 16 119 8 31 22 52 10 26 72 19 8 42 90 29 7 7 . . . Piercing . | . . . . . . . . . . . . . . . . . . . . . . . . . . . . . . . . . . . Sneak Attacks 87 | . 1 . . . . . 19 . . . 2 25 . . . 2 1 2 9 1 10 1 2 1 . . . 6 1 . 4 . . . Combat Hostiles 4 | . . . . . . . 2 . . . . . . . . 1 . . . . . . . . . . . 1 . . . . . . Follow-up Attacks 134 | . . . . . . . 8 5 . . 1 12 . . . . 14 . 3 7 5 1 6 22 9 2 11 27 1 . . . . . Damage Inflicted 47910 | . 937 . 693 197 . . 5156 1766 245 803 670 3161 . . . 570 3617 119 1602 816 1797 1743 895 2461 855 626 1661 3681 450 . 4682 4318 2295 2094 Guns 14989 | . 482 . . . . . 1740 . . . . . . . . . . . . . . . . . . . . . . . 4305 4318 2295 1849 Cannons 1655 | . 190 . 693 92 . . 680 . . . . . . . . . . . . . . . . . . . . . . . . . . . Explosions 4040 | . 219 . . 105 . . . 1210 174 715 182 . . . . . . . . . . 1435 . . . . . . . . . . . . Melee 26946 | . 46 . . . . . 2714 556 71 88 488 3157 . . . 568 3617 119 1602 816 1797 301 895 2461 855 626 1661 3681 450 . 377 . . . Ramming 280 | . . . . . . . 22 . . . . 4 . . . 2 . . . . . 7 . . . . . . . . . . . 245 Kinetic 16162 | . 190 . 693 92 . . 2420 . . . . . . . . . . . . . . . . . . . . . . . 4305 4318 2295 1849 Thermal 151 | . 151 . . . . . . . . . . . . . . . . . . . . . . . . . . . . . . . . . Explosive 2582 | . 196 . . 105 . . . 1210 174 715 182 . . . . . . . . . . . . . . . . . . . . . . . Electromagnetic 1789 | . 354 . . . . . . . . . . . . . . . . . . . . 1435 . . . . . . . . . . . . Impact 3383 | . 46 . . . . . 921 298 71 21 128 655 . . . . . . . . . . 41 . 82 94 87 939 . . . . . . Slashing 23563 | . . . . . . . 1793 258 . 67 360 2502 . . . 568 3617 119 1602 816 1797 301 854 2461 773 532 1574 2742 450 . 377 . . . Piercing . | . . . . . . . . . . . . . . . . . . . . . . . . . . . . . . . . . . . Highest Corruption 23 | . . . . . . . 5 . . 2 2 19 13 9 9 . . . . . . 2 . 4 4 5 15 1 1 1 3 14 20 23 Average Corruption 7 | . . . . . . . 4 . . 1 2 13 9 9 9 . . . . . . 2 . 4 4 4 12 1 1 1 2 12 14 21 Corruption Purged 15 | . . . . . . . 5 . . . . 6 4 . . . . . . . . . . . . . . . . . . . . . Corruption Blocked . | . . . . . . . . . . . . . . . . . . . . . . . . . . . . . . . . . . . Effects 320 | . . . . . . . 39 . . 11 8 18 19 4 6 . . . . . . . . 1 10 8 46 1 2 1 11 51 41 43 Message Errors 82 | . . . . . . . 9 . . 1 5 5 8 . 3 . . . . . . . . 1 2 3 11 1 . 1 3 9 13 7 Matter Fused 71 | . . . . . . . 8 . . 4 2 7 1 3 . . . . . . . . . . 1 2 15 . 1 . 2 11 10 4 Heat Flow Errors 33 | . . . . . . . 4 . . 1 1 2 5 . 2 . . . . . . . . . 2 . 6 . . . 1 3 3 3 Energy Discharges 33 | . . . . . . . 6 . . 2 . 1 1 1 1 . . . . . . . . . . 1 6 . 1 . 2 2 2 7 Parts Rejected 6 | . . . . . . . 1 . . . . . . . . . . . . . . . . . 1 . 1 . . . . 1 . 2 Parts Fused 7 | . . . . . . . 1 . . 1 . 1 . . . . . . . . . . . . 1 1 . . . . . 1 1 . Data Loss (minor) 32 | . . . . . . . 5 . . . . 1 1 . . . . . . . . . . . 3 1 3 . . . 1 9 3 5 Data Loss (major) 11 | . . . . . . . 2 . . 1 . . 3 . . . . . . . . . . . . . 3 . . . . . 1 1 Misfires 7 | . . . . . . . 1 . . 1 . . . . . . . . . . . . . . . . . . . . . 2 2 1 Alerts 5 | . . . . . . . 1 . . . . . . . . . . . . . . . . . . . . . . . . 2 1 1 Misdirections 10 | . . . . . . . . . . . . 1 . . . . . . . . . . . . . . 1 . . . . 1 1 6 Weapon Failures 23 | . . . . . . . 1 . . . . . . . . . . . . . . . . . . . . . . . 2 10 4 6 Overload Shots . | . . . . . . . . . . . . . . . . . . . . . . . . . . . . . . . . . . . Overflow Damage 3144 | . 1 . 18 . . . 340 139 71 17 95 669 . . . 151 290 89 208 . 372 106 . 97 50 72 99 154 . . 106 . . . Projectiles 27 | . 1 . 18 . . . 8 . . . . . . . . . . . . . . . . . . . . . . . . . . . Explosions 153 | . . . . . . . . 23 . 17 7 . . . . . . . . . . 106 . . . . . . . . . . . . Melee 2964 | . . . . . . . 332 116 71 . 88 669 . . . 151 290 89 208 . 372 . . 97 50 72 99 154 . . 106 . . . Knockbacks 36 | . 3 . 6 1 . . 18 . 1 . 1 . . . . . . . . . . . . . . . . 5 . . . . . 1 Impact 11 | . . . . . . . 3 . 1 . 1 . . . . . . . . . . . . . . . . 5 . . . . . 1 Kinetic 19 | . 3 . 6 1 . . 9 . . . . . . . . . . . . . . . . . . . . . . . . . . . Secondary 6 | . . . . . . . 6 . . . . . . . . . . . . . . . . . . . . . . . . . . . Self-Inflicted Damage 198 | . 38 . . 21 . . . 20 . 10 . . . . . . . . . . . 109 . . . . . . . . . . . . Shots 5 | . 1 . . 1 . . . 1 . 1 . . . . . . . . . . . 1 . . . . . . . . . . . . Rammed 4 | . . . 2 . . . . . . . . . . . . 1 . . . . . 1 . . . . . . . . . . . . Targets Rammed 21 | . . . 2 . . . 1 . . . . 1 . . . 1 . . . . . 1 . . . . . . . . . . . 15 Kicked 16 | . . . . . . . . . . . . 1 . . . . . . . . . . . . . . . . . . . . . 15 Crushed 1 | . . . . . . . 1 . . . . . . . . . . . . . . . . . . . . . . . . . . . Highest Temperature 466 | 30 260 . 33 . . . 466 10 19 143 104 197 256 . 233 . 18 . 16 1 . . . 19 184 . 371 . . 36 218 193 262 241 Average Temperature 80 | 18 71 . 14 . . . 149 3 19 83 49 102 118 . 117 . 6 . 5 1 . . . 9 55 . 134 . . 19 15 21 62 41 Received Heat Transfer 7115 | . 198 . 63 . . . 873 225 63 9 99 363 . . . 45 474 . 636 243 63 129 63 387 402 . 1512 339 99 . 187 94 31 518 Effects 9 | . . . . . . . 4 . . . . . . . . . . . . . . . . . . . 3 . . . . . . 2 Shutdowns 3 | . . . . . . . 2 . . . . . . . . . . . . . . . . . . . 1 . . . . . . . Energy Bleed 1 | . . . . . . . 1 . . . . . . . . . . . . . . . . . . . . . . . . . . . Interference 3 | . . . . . . . . . . . . . . . . . . . . . . . . . . . 1 . . . . . . 2 Matter Decay 1 | . . . . . . . 1 . . . . . . . . . . . . . . . . . . . . . . . . . . . Damage (minor) 1 | . . . . . . . . . . . . . . . . . . . . . . . . . . . 1 . . . . . . . Siege Activations 2 | . . . . . . . . . . . . . . . . . 1 . . . . . . . 1 . . . . . . . . . Total Turns 41 | . . . . . . . . . . . . . . . . . 4 . . . . . . . 37 . . . . . . . . . Longest Duration 37 | . . . . . . . . . . . . . . . . . 4 . . . . . . . 37 . . . . . . . . . Martial Activations . | . . . . . . . . . . . . . . . . . . . . . . . . . . . . . . . . . . . Shielding Activations . | . . . . . . . . . . . . . . . . . . . . . . . . . . . . . . . . . . . Robots Disrupted . | . . . . . . . . . . . . . . . . . . . . . . . . . . . . . . . . . . . Combat Hostiles . | . . . . . . . . . . . . . . . . . . . . . . . . . . . . . . . . . . . Robots Corrupted 15 | . 1 . . . . . 3 . 1 . 1 2 . . . . . . . . . 4 . . 1 . 1 1 . . . . . . Combat Hostiles 11 | . 1 . . . . . 3 . 1 . 1 2 . . . . . . . . . . . . 1 . 1 1 . . . . . . Parts Fried 32 | . 1 . . . . . 4 3 . . 2 5 . . . . . . . . . 11 . . 1 . 3 2 . . . . . . Impact Corruptions 33 | . . . . . . . 8 5 2 . 2 7 . . . . . . . . . . . . 2 1 2 4 . . . . . . Robots Melted . | . . . . . . . . . . . . . . . . . . . . . . . . . . . . . . . . . . . Combat Hostiles . | . . . . . . . . . . . . . . . . . . . . . . . . . . . . . . . . . . . Parts Melted 3 | . . . . . . . . . . . . 1 . . . . . . . 1 . . . . . . 1 . . . . . . . Heat Transferred 385 | . 385 . . . . . . . . . . . . . . . . . . . . . . . . . . . . . . . . . Parts Sabotaged . | . . . . . . . . . . . . . . . . . . . . . . . . . . . . . . . . . . . Parts Stolen . | . . . . . . . . . . . . . . . . . . . . . . . . . . . . . . . . . . . Parts Stripped . | . . . . . . . . . . . . . . . . . . . . . . . . . . . . . . . . . . . Power Chain Reactions 1 | . 1 . . . . . . . . . . . . . . . . . . . . . . . . . . . . . . . . . Alert | -11 -10 -10 -9 -9 -9 -8 -8 -8 -8 -8 -8 -7 -7 -7 -7 -6 -6 -6 -6 -6 -6 -6 -5 -5 -5 -5 -4 -4 -4 -4 -3 -3 -3 -3 ------- Run | Yrd Mat Min Mat Min Exi Min Mat Gar Mat Gar Mat Fac Was Fac DSF Fac Gar Fac Ext Cet Arc Hub Fac Upp Upp Zhi Pro Fac Arm Lab Res Gar Res Gar Maximum Alert Level 5 | . . . 1 . . . 2 4 2 3 2 . . . 1 1 5 4 3 2 . 1 . . . . . . . . 2 4 3 3 Low Security (%) 49 | 100 100 100 99 100 . 100 60 . . . 8 100 100 100 66 90 3 . . 81 100 79 100 . . . . 100 100 . 29 . . . Level 1 12 | . . . . . . . 21 . . 2 74 . . . 33 9 12 . . 14 . 20 . . . . . . . . 58 8 . . Level 2 13 | . . . . . . . 17 49 100 18 16 . . . . . 9 . 60 3 . . . . . . . . . . 11 20 . 28 Level 3 18 | . . . . . . . . 10 . 79 . . . . . . 23 90 39 . . . . . . . . . . . . 31 99 71 Level 4 4 | . . . . . . . . 39 . . . . . . . . 16 9 . . . . . . . . . . . . . 38 . . Level 5 2 | . . . . . . . . . . . . . . . . . 34 . . . . . . . . . . . . . . . . . High Security . | . . . . . . . . . . . . . . . . . . . . . . . . . . . . . . . . . . . Max Security . | . . . . . . . . . . . . . . . . . . . . . . . . . . . . . . . . . . . Sterilizations 1 | . . . . . . . . . . . . . . . 1 . . . . . . . . . . . . . . . . . . . Peak Influence 2140 | . 126 12 205 102 . . 673 1233 630 930 453 129 18 . 370 279 2140 1123 786 437 30 298 141 . . . . 108 30 . 455 1479 876 896 Initial 1123 | . . 12 . 27 . . . 434 600 390 453 129 18 . . 193 195 1123 482 406 . . 130 . . . . 39 . . . 336 831 596 Average 389 | . 34 5 103 36 . . 202 810 605 744 326 35 1 . 188 133 1180 1041 623 113 2 65 80 . . . . 42 3 . 241 907 792 754 Influence Increases 13864 | . 377 . 405 98 . . 1165 839 70 580 310 435 . . 430 300 2205 140 1120 200 125 328 280 305 100 5 500 490 129 . 1005 1183 380 360 Destroy 0b10 Robot/C 6900 | . 200 . 260 60 . . 700 500 40 160 200 200 . . 180 100 760 60 480 140 80 60 100 280 60 . 340 240 40 . 540 720 220 180 Destroy 0b10 Robot/NC 600 | . 30 . 35 . . . 140 . 5 . 5 100 . . 5 10 10 5 55 5 30 50 10 . . 5 . 25 5 . 40 . 30 . Destroy Leader 994 | . 58 . 56 10 . . 190 20 10 20 60 48 . . 30 32 40 10 56 . . 12 20 20 10 . 40 62 20 . 70 60 30 10 Allied During Kill 1296 | . . . 37 4 . . . 61 . . . . . . 215 135 276 60 453 50 . . . 5 . . . . . . . . . . Successful Hack 292 | . 8 . 16 . . . 8 14 . 7 12 16 . . . 19 28 . 17 . . . 80 . . . . 12 23 . 32 . . . Disable Machine 450 | . 15 . . . . . 45 60 . 15 . 45 . . . . 45 . 45 . 15 90 15 . . . . 15 15 . 15 . . 15 Anti-Garrison Action 1150 | . . . . . . . . 100 . 250 . . . . . . 450 . . . . . . . . . . . . . 200 100 . 50 Destroy Structure 727 | . 21 . 1 9 . . 7 84 15 113 18 11 . . . 4 116 5 14 5 . 101 10 . . . . 16 26 . 18 63 40 30 Partial Spotted 15 | . 15 . . . . . . . . . . . . . . . . . . . . . . . . . . . . . . . . . Lose Combat Pursuer 1440 | . 30 . . 15 . . 75 . . 15 15 15 . . . . 480 . . . . 15 45 . 30 . 120 120 . . 90 240 60 75 Influence Decreases 13088 | . 345 32 335 168 . . 496 275 703 250 955 667 53 . 60 391 344 1295 1379 926 125 60 478 351 124 5 436 554 129 . 557 152 1064 379 Entered New Map 5064 | . . 20 . 43 . . . 235 633 210 477 156 35 . . 177 84 1017 503 320 . . 138 26 6 . . 25 . . . 112 648 199 Time Decay 5908 | . 345 12 295 85 . . 436 . 50 . 318 455 18 . . 214 . 278 586 200 115 40 340 245 118 5 316 415 109 . 527 . 386 . Lost Part 1066 | . . . . 20 . . 60 40 20 20 10 56 . . . . 40 . 170 66 10 20 . 20 . . 120 114 . . 30 40 30 180 Lost Ally 880 | . . . 40 20 . . . . . 20 . . . . 60 . 220 . 120 340 . . . 60 . . . . . . . . . . Purge Threat 170 | . . . . . . . . . . . 150 . . . . . . . . . . . . . . . . . 20 . . . . . Squads Dispatched 61 | . 2 . 1 . . . 7 . . . 3 5 . 2 2 2 . 1 2 . . 2 3 . . . . 8 5 . 12 . 4 . Investigation 14 | . . . . . . . 1 . . . . . . 2 . 1 . . 1 . . . 2 . . . . . . . 6 . 1 . Extermination 11 | . . . . . . . . . . . . 3 . . . 1 . 1 . . . . 1 . . . . 2 1 . . . 2 . Reinforcement 31 | . 2 . 1 . . . 5 . . . 3 2 . . 2 . . . 1 . . 2 . . . . . 3 4 . 6 . . . Assault 2 | . . . . . . . 1 . . . . . . . . . . . . . . . . . . . . . . . . . 1 . Garrison 3 | . . . . . . . . . . . . . . . . . . . . . . . . . . . . 3 . . . . . . Intercept . | . . . . . . . . . . . . . . . . . . . . . . . . . . . . . . . . . . . Searches Triggered . | . . . . . . . . . . . . . . . . . . . . . . . . . . . . . . . . . . . Construction Impeded 2 | . . . . . . . . . . . . . . . . . . . . . . 1 . . . . . . . . 1 . . . Haulers Reinforced 4 | . . . . . . . . . . . . 1 . . . . . . . . . . . . . . . . . . 3 . . . Active Scanning Responses . | . . . . . . . . . . . . . . . . . . . . . . . . . . . . . . . . . . . Cargo Convoy Interrupts . | . . . . . . . . . . . . . . . . . . . . . . . . . . . . . . . . . . . Stealth | -11 -10 -10 -9 -9 -9 -8 -8 -8 -8 -8 -8 -7 -7 -7 -7 -6 -6 -6 -6 -6 -6 -6 -5 -5 -5 -5 -4 -4 -4 -4 -3 -3 -3 -3 --------- Run | Yrd Mat Min Mat Min Exi Min Mat Gar Mat Gar Mat Fac Was Fac DSF Fac Gar Fac Ext Cet Arc Hub Fac Upp Upp Zhi Pro Fac Arm Lab Res Gar Res Gar Distress Signals 21 | . 2 . 1 . . . 3 . . . 1 1 . . . . . . 1 2 . . . . . . . 2 1 . 5 . 2 . Communications Jammed 6 | . . . . . . . . . . . . . . . . . . . . . . 1 1 . . . . . . . . . 4 . Distress Signals 6 | . . . . . . . . . . . . . . . . . . . . . . 1 1 . . . . . . . . . 4 . Times Spotted 577 | . 18 . 17 12 . . 64 24 4 8 18 19 1 . 4 7 60 4 22 10 8 8 12 14 13 . 25 34 6 . 50 44 24 47 Peak Tracking Total 30 | . 4 . 4 14 . . 6 7 3 7 6 5 1 . 2 3 13 3 7 5 2 7 5 7 5 . 8 10 3 . 7 8 5 30 Tactical Retreats 55 | . 2 . . 1 . . 4 . . 1 1 1 . . . . 16 . . . . 1 2 . 2 . 3 4 . . 3 8 3 3 Traps | -11 -10 -10 -9 -9 -9 -8 -8 -8 -8 -8 -8 -7 -7 -7 -7 -6 -6 -6 -6 -6 -6 -6 -5 -5 -5 -5 -4 -4 -4 -4 -3 -3 -3 -3 ------- Run | Yrd Mat Min Mat Min Exi Min Mat Gar Mat Gar Mat Fac Was Fac DSF Fac Gar Fac Ext Cet Arc Hub Fac Upp Upp Zhi Pro Fac Arm Lab Res Gar Res Gar Traps Triggered 12 | . . . . . . . 1 1 . . 1 1 . . . . 2 . . . . 1 . . . . . . . . 1 1 2 1 Indirectly 1 | . . . . . . . . . . . . . . . . . . . . . . 1 . . . . . . . . . . . . Trap Hack Attempts 6 | . . . . . . . . . . . . . . . . . . . 6 . . . . . . . . . . . . . . . Triggered . | . . . . . . . . . . . . . . . . . . . . . . . . . . . . . . . . . . . Disarmed 1 | . . . . . . . . . . . . . . . . . . . 1 . . . . . . . . . . . . . . . Reprogrammed . | . . . . . . . . . . . . . . . . . . . . . . . . . . . . . . . . . . . Reused . | . . . . . . . . . . . . . . . . . . . . . . . . . . . . . . . . . . . Traps Extracted . | . . . . . . . . . . . . . . . . . . . . . . . . . . . . . . . . . . . Installed . | . . . . . . . . . . . . . . . . . . . . . . . . . . . . . . . . . . . Triggered . | . . . . . . . . . . . . . . . . . . . . . . . . . . . . . . . . . . . Machines | -11 -10 -10 -9 -9 -9 -8 -8 -8 -8 -8 -8 -7 -7 -7 -7 -6 -6 -6 -6 -6 -6 -6 -5 -5 -5 -5 -4 -4 -4 -4 -3 -3 -3 -3 ---------- Run | Yrd Mat Min Mat Min Exi Min Mat Gar Mat Gar Mat Fac Was Fac DSF Fac Gar Fac Ext Cet Arc Hub Fac Upp Upp Zhi Pro Fac Arm Lab Res Gar Res Gar Machines Disabled 48 | . 1 . . . . . 3 7 . 5 . 3 . . 1 . 7 . 4 . 1 6 1 . . . . 1 1 2 1 2 . 2 Max in Single Turn 6 | . 1 . . . . . 1 2 . 2 . 1 . . 1 . 1 . 1 . 1 6 1 . . . . 1 1 1 1 1 . 1 Garrison Access 2 | . . . . . . . . . . . . . . . . . . . . . . . 1 . . . . . . . 1 . . . Garrison Relay 10 | . . . . . . . . 1 . 2 . . . . . . 4 . . . . . . . . . . . . . . 2 . 1 Phase Generator 2 | . . . . . . . . 1 . 1 . . . . . . . . . . . . . . . . . . . . . . . . Network Hub 1 | . . . . . . . . . . . . . . . . . . . . . . 1 . . . . . . . . . . . . Energy Cycler 2 | . . . . . . . . . . . . . . . . . . . 2 . . . . . . . . . . . . . . . Machines Repaired . | . . . . . . . . . . . . . . . . . . . . . . . . . . . . . . . . . . . Machines Dismantled . | . . . . . . . . . . . . . . . . . . . . . . . . . . . . . . . . . . . Machines Sabotaged . | . . . . . . . . . . . . . . . . . . . . . . . . . . . . . . . . . . . Overloaded Fab Kills . | . . . . . . . . . . . . . . . . . . . . . . . . . . . . . . . . . . . Hacking | -11 -10 -10 -9 -9 -9 -8 -8 -8 -8 -8 -8 -7 -7 -7 -7 -6 -6 -6 -6 -6 -6 -6 -5 -5 -5 -5 -4 -4 -4 -4 -3 -3 -3 -3 --------- Run | Yrd Mat Min Mat Min Exi Min Mat Gar Mat Gar Mat Fac Was Fac DSF Fac Gar Fac Ext Cet Arc Hub Fac Upp Upp Zhi Pro Fac Arm Lab Res Gar Res Gar Machines Accessed 81 | . 4 . 4 . 1 . 6 2 2 1 5 6 . 1 . 2 3 5 5 . . . 8 . . 4 . 2 7 . 6 2 5 . Terminals 55 | . 3 . 4 . . . 4 2 1 1 5 4 . 1 . 1 3 3 5 . . . 4 . . . . 2 7 . . 2 3 . Fabricators 7 | . . . . . . . . . . . . 1 . . . . . 1 . . . . 2 . . . . . . . 3 . . . Repair Stations 4 | . . . . . . . 1 . . . . . . . . . . 1 . . . . 1 . . . . . . . . . 1 . Recycling Units 1 | . 1 . . . . . . . . . . . . . . . . . . . . . . . . . . . . . . . . . Scanalyzers 2 | . . . . . . . . . . . . 1 . . . . . . . . . . . . . . . . . . 1 . . . Garrison Access 7 | . . . . . . . 1 . 1 . . . . . . 1 . . . . . . 1 . . . . . . . 2 . 1 . Total Hacks 235 | . 8 . 12 . 1 . 12 3 2 1 11 22 . 1 . 7 4 5 8 . . . 27 . . 17 . 7 58 . 16 5 8 . Successful 131 | . 4 . 5 . 1 . 8 2 1 1 5 12 . 1 . 3 3 1 3 . . . 12 . . 17 . 1 40 . 8 . 3 . Failed 104 | . 4 . 7 . . . 4 1 1 . 6 10 . . . 4 1 4 5 . . . 15 . . . . 6 18 . 8 5 5 . Catastrophic 19 | . . . 1 . . . 4 . 1 . . 3 . . . . 1 3 1 . . . 2 . . . . . 1 . . 1 1 . Database Lockouts . | . . . . . . . . . . . . . . . . . . . . . . . . . . . . . . . . . . . Manual 133 | . 7 . 12 . 1 . 6 . 1 . 9 12 . . . 3 . 2 8 . . . 14 . . . . 3 48 . 2 2 3 . Terminals 163 | . 6 . 12 . . . 7 3 1 1 11 12 . 1 . 3 4 3 8 . . . 16 . . . . 7 58 . . 5 5 . Fabricators 15 | . . . . . . . . . . . . 3 . . . . . 1 . . . . 3 . . . . . . . 8 . . . Repair Stations 10 | . . . . . . . 4 . . . . . . . . . . 1 . . . . 3 . . . . . . . . . 2 . Recycling Units 2 | . 2 . . . . . . . . . . . . . . . . . . . . . . . . . . . . . . . . . Scanalyzers 12 | . . . . . . . . . . . . 7 . . . . . . . . . . . . . . . . . . 5 . . . Garrison Access 15 | . . . . . . . 1 . 1 . . . . . . 4 . . . . . . 5 . . . . . . . 3 . 1 . Terminal Hacks 69 | . . . 2 . 1 . 1 2 . 1 3 4 . 1 . 1 3 1 1 . . . 5 . . 17 . . 25 . . . 1 . Record 5 | . . . . . . . . . . . . . . . . . . . . . . . . . . 5 . . . . . . . . Part Schematic 8 | . . . 1 . . . . . . . . . . . . . . . . . . . 2 . . 4 . . 1 . . . . . Robot Analysis 4 | . . . . . . . . . . . . . . . . . . . . . . . . . . 4 . . . . . . . . Prototype ID Bank 4 | . . . . . . . . . . . . . . . . . . . . . . . . . . 4 . . . . . . . . Open Door 5 | . . . . . . . . 1 . 1 . . . . . . 1 1 1 . . . . . . . . . . . . . . . Open DSF 2 | . . . . . . . . . . . . . . 1 . . . . . . . . . . . . . . . . . . 1 . Level Access Points 1 | . . . . . . . . . . . . . . . . . . . . . . . . . . . . . 1 . . . . . Branch Access Points 2 | . . . 1 . . . . . . . . . . . . . . . . . . . 1 . . . . . . . . . . . Emergency Access Points 4 | . . . . . . . . 1 . . . . . . . . 1 . . . . . . . . . . . 2 . . . . . Machine Index 1 | . . . . . . . . . . . . . . . . . . . . . . . . . . . . . 1 . . . . . Terminal Index 2 | . . . . . . . . . . . . . . . . . . . . . . . 1 . . . . . 1 . . . . . Fabricator Index 2 | . . . . . . . . . . . . . . . . . . . . . . . . . . . . . 2 . . . . . Repair Station Index 1 | . . . . . . . . . . . . . . . . . . . . . . . . . . . . . 1 . . . . . Garrison Index 1 | . . . . . . . . . . . . . . . . 1 . . . . . . . . . . . . . . . . . . Alert Level 1 | . . . . . . . . . . . . . . . . . . . . . . . 1 . . . . . . . . . . . Unreport Threat 3 | . . . . . . . . . . . 1 . . . . . . . . . . . . . . . . . 2 . . . . . Locate Traps 1 | . . . . . . . 1 . . . . . . . . . . . . . . . . . . . . . . . . . . . Dispatch Records 1 | . . . . . . . . . . . . . . . . . . . . . . . . . . . . . 1 . . . . . Patrol Status 1 | . . . . . . . . . . . . . . . . . . . . . . . . . . . . . 1 . . . . . Investigation Status 1 | . . . . . . . . . . . . . . . . . . . . . . . . . . . . . 1 . . . . . Reinforcement Status 1 | . . . . . . . . . . . . . . . . . . . . . . . . . . . . . 1 . . . . . Recall Investigation 1 | . . . . . . . . . . . . 1 . . . . . . . . . . . . . . . . . . . . . . Recall Extermination 1 | . . . . . . . . . . . . . . . . . . . . . . . . . . . . . 1 . . . . . Recall Reinforcements 5 | . . . . . . . . . . . . 1 . . . . . . . . . . . . . . . . 4 . . . . . Hauler Manifests 3 | . . . . . . . . . . . 1 1 . . . . . . . . . . . . . . . . 1 . . . . . Registered Components 3 | . . . . . . . . . . . 1 1 . . . . . . . . . . . . . . . . 1 . . . . . Zone Layout 3 | . . . . . . . . . . . . . . . . . . . . . . . . . . . . . 3 . . . . . Garrison Registry 1 | . . . . . . . . . . . . . . . . . 1 . . . . . . . . . . . . . . . . . Proto ID Catalog 1 | . . . . . 1 . . . . . . . . . . . . . . . . . . . . . . . . . . . . . Fabricator Hacks 7 | . . . . . . . . . . . . 1 . . . . . . . . . . 3 . . . . . . . 3 . . . Network Status 1 | . . . . . . . . . . . . 1 . . . . . . . . . . . . . . . . . . . . . . Load Schematic 3 | . . . . . . . . . . . . . . . . . . . . . . . 1 . . . . . . . 2 . . . Build 3 | . . . . . . . . . . . . . . . . . . . . . . . 2 . . . . . . . 1 . . . Repair Station Hacks 4 | . . . . . . . 4 . . . . . . . . . . . . . . . . . . . . . . . . . . . Scan Component 2 | . . . . . . . 2 . . . . . . . . . . . . . . . . . . . . . . . . . . . Repair 2 | . . . . . . . 2 . . . . . . . . . . . . . . . . . . . . . . . . . . . Recycling Unit Hacks 1 | . 1 . . . . . . . . . . . . . . . . . . . . . . . . . . . . . . . . . Retrieve Components 1 | . 1 . . . . . . . . . . . . . . . . . . . . . . . . . . . . . . . . . Scanalyzer 9 | . . . . . . . . . . . . 6 . . . . . . . . . . . . . . . . . . 3 . . . Insert Component 2 | . . . . . . . . . . . . 2 . . . . . . . . . . . . . . . . . . . . . . Analyze 3 | . . . . . . . . . . . . 3 . . . . . . . . . . . . . . . . . . . . . . Retrieve Study 4 | . . . . . . . . . . . . 1 . . . . . . . . . . . . . . . . . . 3 . . . Garrison Access Hacks 6 | . . . . . . . 1 . 1 . . . . . . 1 . . . . . . 1 . . . . . . . 1 . 1 . Unlock Access 5 | . . . . . . . 1 . 1 . . . . . . 1 . . . . . . . . . . . . . . 1 . 1 . Seal Access 1 | . . . . . . . . . . . . . . . . . . . . . . . 1 . . . . . . . . . . . Unauthorized Hacks 35 | . 3 . 3 . . . 2 . . . 2 1 . . . 1 . . 2 . . . 3 . . . . 1 15 . 1 . 1 . Terminals 33 | . 3 . 3 . . . 2 . . . 2 1 . . . 1 . . 2 . . . 3 . . . . 1 15 . . . . . Track 2 | . . . . . . . . . . . . . . . . . . . . . . . . . . . . . 2 . . . . . Assimilate 3 | . 1 . . . . . . . . . . . . . . . . . . . . . 1 . . . . . 1 . . . . . Botnet 22 | . 2 . 3 . . . 2 . . . 2 1 . . . 1 . . 2 . . . 1 . . . . 1 7 . . . . . Skim 6 | . . . . . . . . . . . . . . . . . . . . . . . 1 . . . . . 5 . . . . . Fabricators . | . . . . . . . . . . . . . . . . . . . . . . . . . . . . . . . . . . . Repair Stations 1 | . . . . . . . . . . . . . . . . . . . . . . . . . . . . . . . . . 1 . Patch 1 | . . . . . . . . . . . . . . . . . . . . . . . . . . . . . . . . . 1 . Recycling Units . | . . . . . . . . . . . . . . . . . . . . . . . . . . . . . . . . . . . Scanalyzers . | . . . . . . . . . . . . . . . . . . . . . . . . . . . . . . . . . . . Garrison Access 1 | . . . . . . . . . . . . . . . . . . . . . . . . . . . . . . . 1 . . . Jam 1 | . . . . . . . . . . . . . . . . . . . . . . . . . . . . . . . 1 . . . Data Cores Recovered 1 | . 1 . . . . . . . . . . . . . . . . . . . . . . . . . . . . . . . . . Used . | . . . . . . . . . . . . . . . . . . . . . . . . . . . . . . . . . . . Hacking Detections 54 | . 3 . 4 . . . 5 1 1 1 3 6 . . . 2 1 4 4 . . . 5 . . . . 2 4 . 4 2 2 . Full Trace Events 6 | . . . . . . . . . . . . . . . . 1 1 . . . . . 2 . . . . . . . 2 . . . Feedback Events 1 | . . . . . . . . . . . . . . . . . . . . . . . . . . . . . . . 1 . . . Corruption 1 | . . . . . . . . . . . . . . . . . . . . . . . . . . . . . . . 1 . . . Feedback Blocked . | . . . . . . . . . . . . . . . . . . . . . . . . . . . . . . . . . . . Robot Schematics Acquired . | . . . . . . . . . . . . . . . . . . . . . . . . . . . . . . . . . . . Robots Built . | . . . . . . . . . . . . . . . . . . . . . . . . . . . . . . . . . . . Authchips . | . . . . . . . . . . . . . . . . . . . . . . . . . . . . . . . . . . . Time . | . . . . . . . . . . . . . . . . . . . . . . . . . . . . . . . . . . . Total Robot Build Rating . | . . . . . . . . . . . . . . . . . . . . . . . . . . . . . . . . . . . Part Schematics Acquired 10 | . . . 1 . . . . . . . . 2 . . . . . . . . . . 2 . . 4 . . 1 . . . . . Parts Built 4 | . . . . . . . . . . . . . . . . . . . . . . . 4 . . . . . . . . . . . Authchips . | . . . . . . . . . . . . . . . . . . . . . . . . . . . . . . . . . . . Time 167 | . . . . . . . . . . . . . . . . . . . . . . . 116 . . . . . . . 51 . . . Total Part Build Rating 28 | . . . . . . . . . . . . . . . . . . . . . . . 28 . . . . . . . . . . . Part Studies Acquired 4 | . . . . . . . . . . . . 1 . . . . . . . . . . . . . . . . . . 3 . . . Parts Repaired 2 | . . . . . . . 2 . . . . . . . . . . . . . . . . . . . . . . . . . . . Time 52 | . . . . . . . 52 . . . . . . . . . . . . . . . . . . . . . . . . . . . Parts Recycled . | . . . . . . . . . . . . . . . . . . . . . . . . . . . . . . . . . . . Recycled Matter . | . . . . . . . . . . . . . . . . . . . . . . . . . . . . . . . . . . . Retrieved Matter . | . . . . . . . . . . . . . . . . . . . . . . . . . . . . . . . . . . . Retrieved Components 10 | . 10 . . . . . . . . . . . . . . . . . . . . . . . . . . . . . . . . . Parts Scanalyzed 2 | . . . . . . . . . . . . 2 . . . . . . . . . . . . . . . . . . . . . . Part Schematics Acquired 2 | . . . . . . . . . . . . 2 . . . . . . . . . . . . . . . . . . . . . . Parts Damaged . | . . . . . . . . . . . . . . . . . . . . . . . . . . . . . . . . . . . Bothacking | -11 -10 -10 -9 -9 -9 -8 -8 -8 -8 -8 -8 -7 -7 -7 -7 -6 -6 -6 -6 -6 -6 -6 -5 -5 -5 -5 -4 -4 -4 -4 -3 -3 -3 -3 ------------ Run | Yrd Mat Min Mat Min Exi Min Mat Gar Mat Gar Mat Fac Was Fac DSF Fac Gar Fac Ext Cet Arc Hub Fac Upp Upp Zhi Pro Fac Arm Lab Res Gar Res Gar Used RIF Installer 1 | . . . . . . . . . . . . . . . . . . . . . . . . . . . . . . . . 1 . . Robots Hacked 2 | . . . . . . . . . . . . 1 . . . . . . . . . . . . . . . 1 . . . . . . Non-combat 2 | . . . . . . . . . . . . 1 . . . . . . . . . . . . . . . 1 . . . . . . Combat . | . . . . . . . . . . . . . . . . . . . . . . . . . . . . . . . . . . . Robot Hacks Applied 2 | . . . . . . . . . . . . 1 . . . . . . . . . . . . . . . 1 . . . . . . find_chute 2 | . . . . . . . . . . . . 1 . . . . . . . . . . . . . . . 1 . . . . . . Relay Couplers Released 43 | . . . . . . . . 5 . 7 . . . . . . 18 . . . . . . . . . . . . . . 10 . 3 Machine Destruction 43 | . . . . . . . . 5 . 7 . . . . . . 18 . . . . . . . . . . . . . . 10 . 3 Fabnet Peak Effective % . | . . . . . . . . . . . . . . . . . . . . . . . . . . . . . . . . . . . Robots Rewired 28 | . . . . . . . . . . . . . . . . . 10 . 16 . . . . 2 . . . . . . . . . . Allies Hacked . | . . . . . . . . . . . . . . . . . . . . . . . . . . . . . . . . . . . Hacks Repelled . | . . . . . . . . . . . . . . . . . . . . . . . . . . . . . . . . . . . Allies | -11 -10 -10 -9 -9 -9 -8 -8 -8 -8 -8 -8 -7 -7 -7 -7 -6 -6 -6 -6 -6 -6 -6 -5 -5 -5 -5 -4 -4 -4 -4 -3 -3 -3 -3 -------- Run | Yrd Mat Min Mat Min Exi Min Mat Gar Mat Gar Mat Fac Was Fac DSF Fac Gar Fac Ext Cet Arc Hub Fac Upp Upp Zhi Pro Fac Arm Lab Res Gar Res Gar Total Allies 57 | . . 3 . . . . . 2 . 1 . . 20 . . . 10 . 19 . . . . 2 . . . . . . . . . . Largest Group 20 | . . 3 3 1 . . . 2 . 1 . . 20 19 18 14 12 10 18 18 . . . 2 . . . . . . . . . . Highest-Rated Group 577 | . . 40 40 16 . . . 62 . 20 . . 515 501 487 403 392 392 577 577 . . . 60 . . . . . . . . . . Highest-Rated Ally 46 | . . 16 16 16 . . . 31 . 20 . . 31 31 31 31 46 46 46 46 . . . 30 . . . . . . . . . . Initial Warlord ECA Mod 25 | . . . . . . . . . 4 4 9 8 8 8 8 17 17 25 25 25 25 25 24 24 24 24 23 23 23 23 22 22 . . Total Orders 1 | . . . . . . . . . . . . . . . . . . . . . . . . 1 . . . . . . . . . . EXPLORE 1 | . . . . . . . . . . . . . . . . . . . . . . . . 1 . . . . . . . . . . Ally Attacks 518 | . . . 46 7 . . . 19 . 2 . . 52 . 75 36 102 18 113 42 . . . 6 . . . . . . . . . . Total Damage 10320 | . . . 483 56 . . . 234 . 174 . . 787 . 1023 576 1944 590 3354 1020 . . . 79 . . . . . . . . . . Kills 91 | . . . 9 1 . . . 7 . . . . 3 . 9 3 21 4 28 5 . . . 1 . . . . . . . . . . Allies Corrupted 2 | . . . . . . . . . . . . . . . . . . . . . . . . 2 . . . . . . . . . . Allies Melted . | . . . . . . . . . . . . . . . . . . . . . . . . . . . . . . . . . . . Intel | -11 -10 -10 -9 -9 -9 -8 -8 -8 -8 -8 -8 -7 -7 -7 -7 -6 -6 -6 -6 -6 -6 -6 -5 -5 -5 -5 -4 -4 -4 -4 -3 -3 -3 -3 ------- Run | Yrd Mat Min Mat Min Exi Min Mat Gar Mat Gar Mat Fac Was Fac DSF Fac Gar Fac Ext Cet Arc Hub Fac Upp Upp Zhi Pro Fac Arm Lab Res Gar Res Gar Active Infowar (turns) 8481 | . . . . . . . . . . . . 786 . . . . . 204 58 165 493 179 878 361 . . 455 1332 111 1 1778 303 914 463 Sensors 28 | . . . . . . . . . . . . . . . . . . . . . . . . . . . . 28 . . . . . . Terrain 906 | . . . . . . . . . . . . . . . . . . . . . . . . . . . . . . . . . 853 53 Structural 2990 | . . . . . . . . . . . . 644 . . . . . 204 58 . 292 179 483 . . . . 1130 . . . . . . Seismic 317 | . . . . . . . . . . . . . . . . . . . . . . . . . . . . 108 111 1 97 . . . T.N.C. 53 | . . . . . . . . . . . . 53 . . . . . . . . . . . . . . . . . . . . . . Jamming 6760 | . . . . . . . . . . . . 89 . . . . . . . 165 493 179 878 361 . . 455 779 . . 1681 303 914 463 Robot Analysis Total 4 | . . . . . . . . . . . . . . . . . . . . . . . . . . 4 . . . . . . . . Derelict Logs Recovered 3 | . . . . 1 . . . . . . . . . . . . . . . . . . . 1 . . 1 . . . . . . . Drone Launches 2 | . . . . . . . . . . . . . . . . . . . . . . . . 2 . . . . . . . . . . Drone Recoveries . | . . . . . . . . . . . . . . . . . . . . . . . . . . . . . . . . . . . Exploration | -11 -10 -10 -9 -9 -9 -8 -8 -8 -8 -8 -8 -7 -7 -7 -7 -6 -6 -6 -6 -6 -6 -6 -5 -5 -5 -5 -4 -4 -4 -4 -3 -3 -3 -3 ------------- Run | Yrd Mat Min Mat Min Exi Min Mat Gar Mat Gar Mat Fac Was Fac DSF Fac Gar Fac Ext Cet Arc Hub Fac Upp Upp Zhi Pro Fac Arm Lab Res Gar Res Gar Turns Passed 27870 | 97 1438 47 744 217 390 120 2701 597 110 1222 709 1507 417 141 230 451 1842 604 1821 568 875 179 878 942 592 304 1262 1332 605 253 1995 1183 914 583 Spaces Moved 14268 | 55 753 25 401 122 240 76 998 292 56 271 327 778 233 72 123 231 842 330 932 284 408 77 424 468 310 160 784 774 330 184 1331 654 605 318 Core 5 | 5 . . . . . . . . . . . . . . . . . . . . . . . . . . . . . . . . . . Treads 8821 | 50 753 25 401 122 240 76 911 162 56 180 327 558 154 72 123 231 842 330 932 284 408 77 424 468 310 160 145 . . . . . . . Legs 5442 | . . . . . . . 87 130 . 91 . 220 79 . . . . . . . . . . . . . 639 774 330 184 1331 654 605 318 Wheels . | . . . . . . . . . . . . . . . . . . . . . . . . . . . . . . . . . . . Hover . | . . . . . . . . . . . . . . . . . . . . . . . . . . . . . . . . . . . Flight . | . . . . . . . . . . . . . . . . . . . . . . . . . . . . . . . . . . . Fastest Speed 50 | 50 160 160 160 160 160 160 120 120 160 160 155 122 122 160 160 160 160 160 160 160 160 160 160 160 160 160 82 110 120 110 107 105 103 57 Average Speed 144 | 150 160 160 160 160 160 160 162 169 160 170 156 147 147 160 160 160 165 160 160 162 160 160 160 160 160 160 143 119 120 111 113 105 106 95 Slowest Speed 540 | 160 160 160 160 160 160 160 245 240 160 190 160 320 160 160 160 160 240 160 160 240 160 160 160 160 240 160 540 180 120 120 120 107 108 103 Overloaded Moves 132 | . . . . . . . . . . . . . . . . . . . . . . . . . . . 72 . . . . . . 60 Propulsion Burnouts . | . . . . . . . . . . . . . . . . . . . . . . . . . . . . . . . . . . . Robots Hopped . | . . . . . . . . . . . . . . . . . . . . . . . . . . . . . . . . . . . Potential Cave-ins . | . . . . . . . . . . . . . . . . . . . . . . . . . . . . . . . . . . . Cave-ins Triggered 1 | . . . . . . . . . . . . . . . . . . . . . . . . . . . . . . . . 1 . . Teleports 2 | . . . . . . . . . . . . . . . . . . . . . . . . . . . . . 1 . 1 . . . Exploration Rate (%) 44 | 3 92 9 27 40 62 31 69 48 13 45 38 18 72 4 93 9 96 7 95 57 88 13 14 66 44 60 86 21 17 93 31 53 21 39 Regions Visited 34 Branch Regions 14 Pre-discovered Areas 7 | . . . . 1 . . . . . . . . . . . . . . . . . . . 1 . 3 1 . 1 . . . . . Known Exits Taken 10 | . . . 1 . . . 1 . 1 . . . . 1 . 1 . . . . . . 1 . . . . 1 . 1 1 . 1 . Unknown Exits Taken 17 | 1 1 1 . 1 1 1 . . . . 1 . . . . . . 1 1 1 1 1 . 1 1 1 1 . 1 . . . . . Scrap Searched 7 | . . 1 . . . . . . . . . . . . . . . . . . . . . 2 1 . 3 . . . . . . . Spaces Dug 59 | . . . . . . . 3 1 . . 4 11 . . . 4 1 5 . . . 1 5 . . . . 8 13 . 2 1 . . Terrain Destroyed 607 | . 19 . . 9 . . 5 95 15 140 17 11 . . . 4 1 5 . . . 161 5 . . . . 8 15 . 33 40 20 4 Melee 57 | . . . . . . . 3 1 . . 4 11 . . . 4 1 5 . . . 1 5 . . . . 8 13 . 1 . . . Projectile 74 | . . . . 1 . . 2 . . . . . . . . . . . . . . . . . . . . . 2 . 31 31 3 4 AOE 466 | . 19 . . 8 . . . 94 15 140 13 . . . . . . . . . . 160 . . . . . . . . . . 17 . Terrain Rammed . | . . . . . . . . . . . . . . . . . . . . . . . . . . . . . . . . . . . Walls Destroyed . | . . . . . . . . . . . . . . . . . . . . . . . . . . . . . . . . . . . Machines Disabled . | . . . . . . . . . . . . . . . . . . . . . . . . . . . . . . . . . . . Actions | -11 -10 -10 -9 -9 -9 -8 -8 -8 -8 -8 -8 -7 -7 -7 -7 -6 -6 -6 -6 -6 -6 -6 -5 -5 -5 -5 -4 -4 -4 -4 -3 -3 -3 -3 --------- Run | Yrd Mat Min Mat Min Exi Min Mat Gar Mat Gar Mat Fac Was Fac DSF Fac Gar Fac Ext Cet Arc Hub Fac Upp Upp Zhi Pro Fac Arm Lab Res Gar Res Gar Total 19568 | 65 903 32 448 132 247 75 1876 353 72 1007 502 1005 314 98 162 282 1092 397 1219 372 581 120 586 585 387 204 868 1078 502 217 1600 917 774 496 Wait 2863 | . 60 8 5 1 . . 633 11 11 701 130 54 47 27 11 27 40 46 69 33 99 35 96 30 57 . 10 164 102 10 39 130 78 99 Move 14236 | 54 752 24 400 121 239 75 998 291 56 270 326 778 232 71 122 231 841 329 931 283 407 77 423 467 309 159 783 773 329 183 1331 648 605 318 Hop . | . . . . . . . . . . . . . . . . . . . . . . . . . . . . . . . . . . . Pick Up 303 | 4 16 . 3 1 3 . 37 4 . 2 6 18 5 . 8 3 14 5 28 12 13 . 10 8 3 9 11 18 16 3 25 8 10 . Fast Attach 142 | 6 3 . 1 . . . 20 2 . . 2 14 4 . 2 1 4 1 6 3 2 . 6 3 3 8 4 6 5 3 19 6 6 2 Attach 159 | . . . 1 . 2 . 10 3 1 4 1 11 2 . . 1 6 3 14 14 5 . 9 11 . 5 13 10 9 1 5 5 6 7 Detach 34 | . . . . . . . . 1 . 1 2 5 6 . 1 . . . . 1 . . 5 4 . . 1 1 1 1 2 . 1 1 Swap 180 | . 10 . 3 1 1 . 10 4 1 7 5 10 4 . . 2 4 . 4 4 6 . 4 6 . 2 8 11 5 5 27 15 14 7 Drop 351 | . 16 . 5 1 2 . 39 1 . 2 9 24 14 . 17 2 12 6 13 9 15 . 13 6 4 15 6 22 10 3 56 13 13 3 Fire 458 | 1 45 . 28 7 . . 72 17 2 14 2 3 . . . . . . . . . . . . . . . 1 1 1 89 92 41 42 Melee 604 | . 1 . . . . . 56 14 1 6 19 87 . . 1 14 95 7 24 13 34 8 20 45 11 6 32 72 24 7 7 . . . Ram . | . . . . . . . . . . . . . . . . . . . . . . . . . . . . . . . . . . . Kick 16 | . . . . . . . . . . . . 1 . . . . . . . . . . . . . . . . . . . . . 15 Crush 4 | . . . 2 . . . 1 . . . . . . . . 1 . . . . . . . . . . . . . . . . . . Escape Stasis 5 | . . . . . . . . 5 . . . . . . . . . . . . . . . . . . . . . . . . . . Rewire 207 | . . . . . . . . . . . . . . . . . 76 . 124 . . . . 5 . . . . . . . . . 2 Trap 6 | . . . . . . . . . . . . . . . . . . . 6 . . . . . . . . . . . . . . . Miscellaneous . | . . . . . . . . . . . . . . . . . . . . . . . . . . . . . . . . . . . Route ------- -11/Scrapyard -10/Materials (discovered 5 exits: *Mat x3 / [*Min] / [*Sub]) -10/Mines -9/Materials (discovered 4 exits: *Min x2 / Sto x2) -9/Mines (discovered 2 exits: *Mat / *Exi) -9/Exiles -8/Mines -8/Materials (discovered 2 exits: *Fac / Gar) -8/Garrison -8/Materials -8/Garrison -8/Materials -7/Factory -7/Waste -7/Factory -7/DSF -6/Factory -6/Garrison (discovered 3 exits: *Fac x3) -6/Factory -6/Extension (discovered 3 exits: *Fac x2 / [*Cet]) -6/Cetus (discovered 2 exits: *Fac / [*Arc]) -6/Archives (discovered 3 exits: *Fac / [*Hub x2]) -6/Hub_04(d) -5/Factory (discovered 2 exits: *Upp x2) -5/Upper Caves -5/Upper Caves -5/Zhirov -4/Proximity Caves -4/Factory (discovered 2 exits: *Res / *Arm) -4/Armory (discovered 3 exits: Res x2 / [*Lab]) -4/Lab -3/Research (discovered 2 exits: *Tes / Gar) -3/Garrison (discovered 2 exits: *Res x2) -3/Research -3/Garrison History --------- Turn | Location | Event 3 | -11/Scrapyard | Discovered new exit (range 15) 98 | -11/Scrapyard | Entered Materials 306 | -10/Materials | Build established: Mutant 423 | -10/Materials | Discovered new exit (range 6) 503 | -10/Materials | Discovered new exit (range 6) 744 | -10/Materials | Discovered new exit (range 3) 1267 | -10/Materials | Discovered new exit (range 10) 1294 | -10/Materials | Discovered new exit (range 16) 1536 | -10/Materials | Entered Mines 1540 | -10/Mines | Assisted by bots powering up and referring to "LRC-V3" 1564 | -10/Mines | Discovered new exit (range 9) 1583 | -10/Mines | Entered Materials 1583 | -9/Materials | Accompanied by 3 allies 1583 | -9/Materials | Evolved 2 slots: Propulsion x2 1610 | -9/Materials | Identified exit to Mines 1610 | -9/Materials | Identified exit to Storage 2087 | -9/Materials | Build established: Scavenger-Mutant 2327 | -9/Materials | Entered Mines 2327 | -9/Mines | Accompanied by 1 ally 2347 | -9/Mines | Met a Derelict bent on vengeance 2360 | -9/Mines | Assembled infested the area 2362 | -9/Mines | Found a damaged Exp. Sensor Array with a note attached 2370 | -9/Mines | Found Prototype Device 2398 | -9/Mines | Met 8R-AWN 2501 | -9/Mines | Discovered new exit (range 8) 2512 | -9/Mines | Learned location of Recycling (-9) 2538 | -9/Mines | Discovered new exit (range 5) 2544 | -9/Mines | Entered Exiles 2584 | -9/Exiles | Welcomed by 8R-AWN 2610 | -9/Exiles | Met EX-HEX 2668 | -9/Exiles | Met EX-BIN 2686 | -9/Exiles | Aligned with FarCom system 2688 | -9/Exiles | Given EX-Vault access code 2725 | -9/Exiles | Opened EX-Vault 2736 | -9/Exiles | Found Potential Leg 2738 | -9/Exiles | Found Potential Leg 2768 | -9/Exiles | Warned to stay clear of 0b10 Research branches 2819 | -9/Exiles | Met EX-DEC 2922 | -9/Exiles | Discovered new exit (range 10) 2934 | -9/Exiles | Left Exiles lab with Potential Leg 2934 | -9/Exiles | Entered Mines 3029 | -8/Mines | Discovered new exit (range 8) 3054 | -8/Mines | Entered Materials 3054 | -8/Materials | Evolved 2 slots: Utility x1, Weapon x1 3367 | -8/Materials | Build established: Scavenger-Skirmisher 3438 | -8/Materials | Lost 3 parts (2n1u) 3551 | -8/Materials | Repaired Lgt. Treads 3579 | -8/Materials | Repaired Lgt. Treads 5039 | -8/Materials | Build established: Scavenger-Gladiator 5116 | -8/Materials | Discovered new exit (range 10) 5454 | -8/Materials | First assault squad dispatched 5755 | -8/Materials | Identified exit to Garrison 5755 | -8/Materials | Entered Garrison 5787 | -8/Garrison | Triggered checkpoint 5793 | -8/Garrison | Core integrity fell below 50% 5801 | -8/Garrison | Garrison Relay disabled 6018 | -8/Garrison | Rescued a captive Derelict 6019 | -8/Garrison | Rescued a captive Derelict 6041 | -8/Garrison | Triggered checkpoint 6084 | -8/Garrison | Destroyed 9 combat bots 6103 | -8/Garrison | Triggered checkpoint 6107 | -8/Garrison | Triggered checkpoint 6171 | -8/Garrison | Discovered new exit (range 14) 6300 | -8/Garrison | Phase Generator disabled 6352 | -8/Garrison | Entered Materials 6462 | -8/Materials | Identified exit to Garrison 6462 | -8/Materials | Entered Garrison 6488 | -8/Garrison | Garrison Relay disabled 6618 | -8/Garrison | Triggered checkpoint 6709 | -8/Garrison | Garrison Relay disabled 6712 | -8/Garrison | Destroyed 7 combat bots 6757 | -8/Garrison | Discovered new exit (range 13) 6871 | -8/Garrison | Phase Generator disabled 6912 | -8/Garrison | Rescued a captive Derelict 7684 | -8/Garrison | Entered Materials 7880 | -8/Materials | Core integrity fell below 20% 8357 | -8/Materials | Discovered new exit (range 16) 8393 | -8/Materials | Entered Factory 8393 | -7/Factory | Evolved 2 slots: Propulsion x2 8698 | -7/Factory | Build established: Gladiator 8976 | -7/Factory | Found Powered Armor 9007 | -7/Factory | Build established: Scavenger-Gladiator 9553 | -7/Factory | System corruption reached 10% 9589 | -7/Factory | Lost 5 parts (4n1u) 9870 | -7/Factory | Build established: Gladiator 9900 | -7/Factory | Sucked down chute 9900 | -7/Factory | Entered Waste 9901 | -7/Waste | Joined by Warlord forces that had cleared the area 9986 | -7/Waste | Discovered new exit (range 16) 10040 | -7/Waste | A Compactor rumbled back to life 10240 | -7/Waste | A Compactor rumbled back to life 10240 | -7/Waste | Spotted C-40 Crusher 10246 | -7/Waste | Allies destroyed C-40 Crusher 10317 | -7/Waste | Entered Factory 10317 | -7/Factory | Accompanied by 19 allies 10425 | -7/Factory | Identified exit to DSF 10446 | -7/Factory | Build established: Scavenger-Gladiator 10458 | -7/Factory | Entered DSF 10458 | -7/DSF | Accompanied by 18 allies 10484 | -7/DSF | Additional patrols routed to DSF 10530 | -7/DSF | Lost 4 allies 10623 | -7/DSF | Sterilization system engaged 10643 | -7/DSF | Ambient heat levels rising (+10) 10647 | -7/DSF | Discovered new exit (range 16) 10658 | -7/DSF | Ambient heat levels rising (+10) 10673 | -7/DSF | Ambient heat levels rising (+10) 10688 | -7/DSF | Ambient heat levels rising (+10) 10688 | -7/DSF | Entered Factory 10688 | -6/Factory | Accompanied by 14 allies 10688 | -6/Factory | Evolved 2 slots: Utility x1, Weapon x1 11059 | -6/Factory | P-60 Hacker assimilated allied ZN-R3J(g) 11128 | -6/Factory | Identified exit to Garrison 11139 | -6/Factory | Entered Garrison 11139 | -6/Garrison | Accompanied by 12 allies 11193 | -6/Garrison | Triggered checkpoint 11236 | -6/Garrison | Garrison Relay disabled 11426 | -6/Garrison | Spotted B-75 Beast 11470 | -6/Garrison | Destroyed B-75 Beast 11524 | -6/Garrison | Lost 9 allies 11585 | -6/Garrison | Triggered checkpoint 11596 | -6/Garrison | Triggered checkpoint 11619 | -6/Garrison | Triggered checkpoint 11721 | -6/Garrison | Triggered checkpoint 11860 | -6/Garrison | Garrison Relay disabled 11991 | -6/Garrison | Triggered checkpoint 12293 | -6/Garrison | Discovered new exit (range 10) 12500 | -6/Garrison | Build established: Commander-Gladiator 12515 | -6/Garrison | Triggered checkpoint 12547 | -6/Garrison | Garrison Relay disabled 12597 | -6/Garrison | Discovered new exit (range 50) 12597 | -6/Garrison | Discovered new exit (range 12) 12597 | -6/Garrison | Discovered new exit (range 54) 12811 | -6/Garrison | Triggered checkpoint 12829 | -6/Garrison | Garrison Relay disabled 12981 | -6/Garrison | Entered Factory 12981 | -6/Factory | Accompanied by 10 allies 13535 | -6/Factory | Discovered new exit (range 5) 13585 | -6/Factory | Entered Extension 13585 | -6/Extension | Accompanied by 9 allies 13807 | -6/Extension | Rescued a captive Derelict 13831 | -6/Extension | Energy Cycler disabled 13831 | -6/Extension | Rescued a captive Derelict 13831 | -6/Extension | Rescued a captive Derelict 13831 | -6/Extension | Rescued a captive Derelict 13837 | -6/Extension | Rescued a captive Derelict 13839 | -6/Extension | Rescued a captive Derelict 13844 | -6/Extension | Rescued a captive Derelict 14159 | -6/Extension | Spotted B-75 Beast 14171 | -6/Extension | Spotted B-75 Beast 14175 | -6/Extension | Discovered new exit (range 13) 14178 | -6/Extension | Allies destroyed B-75 Beast 14212 | -6/Extension | Allies destroyed B-75 Beast 14239 | -6/Extension | Lost 5 allies 14242 | -6/Extension | Lost 12 parts (6n3u3w) 14502 | -6/Extension | Lost 3 parts (1u2w) 14753 | -6/Extension | Discovered new exit (range 10) 14756 | -6/Extension | Discovered new exit (range 6) 15091 | -6/Extension | Extracted ID and sensor layout for unrecognized location from A7's data core 15406 | -6/Extension | Entered Cetus 15406 | -6/Cetus | Accompanied by 18 allies 15433 | -6/Cetus | Spotted Cetus Guard 15434 | -6/Cetus | Allies destroyed Cetus Guard 15435 | -6/Cetus | Spotted Cetus Guard 15435 | -6/Cetus | Spotted Cetus Guard 15435 | -6/Cetus | Spotted Cetus Guard 15468 | -6/Cetus | Allies destroyed Cetus Guard 15476 | -6/Cetus | Allies destroyed Cetus Guard 15499 | -6/Cetus | Lost 14 allies 15574 | -6/Cetus | Discovered new exit (range 16) 15691 | -6/Cetus | Spotted Cetus Guard 15691 | -6/Cetus | Spotted Cetus Guard 15756 | -6/Cetus | Spotted Cetus Guard 15756 | -6/Cetus | Spotted Cetus Guard 15761 | -6/Cetus | Build established: Scavenger-Gladiator 15773 | -6/Cetus | Destroyed Cetus Guard 15782 | -6/Cetus | Destroyed Cetus Guard 15798 | -6/Cetus | Destroyed Cetus Guard 15824 | -6/Cetus | Lost 9 parts (6n1u2w) 15907 | -6/Cetus | Discovered new exit (range 16) 15918 | -6/Cetus | Met Revision 17 15974 | -6/Cetus | Entered Archives 16403 | -6/Archives | Discovered new exit (range 15) 16479 | -6/Archives | Discovered new exit (range 14) 16584 | -6/Archives | Discovered new exit (range 14) 16849 | -6/Archives | Entered Hub_04(d) 16953 | -6/Hub_04(d) | Specialist reinforcements revealed to be Infiltrators 16992 | -6/Hub_04(d) | Network Hub disabled 16993 | -6/Hub_04(d) | Core integrity fell below 50% 17023 | -6/Hub_04(d) | Discovered new exit (range 3) 17028 | -6/Hub_04(d) | Entered Factory 17028 | -5/Factory | Evolved 2 slots: Utility x2 17080 | -5/Factory | Discovered new exit (range 7) 17118 | -5/Factory | Fabricated Quantum Reactor? 17615 | -5/Factory | Discovered new exit (range 16) 17639 | -5/Factory | Identified exit to Upper Caves 17855 | -5/Factory | Fabricated Power Sword (x2) 17906 | -5/Factory | Entered Upper Caves 17947 | -5/Upper Caves | Attracted the attention of an 0b10 outpost 18003 | -5/Upper Caves | Destroyed 7 combat bots 18083 | -5/Upper Caves | Met a Warlord Commander 18084 | -5/Upper Caves | Learned location of Warlord (-4) 18085 | -5/Upper Caves | Warlord Commander delivered Encrypted Comm Array 18105 | -5/Upper Caves | Found Unknown Device 18105 | -5/Upper Caves | Identified Encrypted Comm Array 18377 | -5/Upper Caves | Attracted the attention of an 0b10 checkpoint 18420 | -5/Upper Caves | Learned 4 Factory zone layouts 18832 | -5/Upper Caves | Discovered new exit (range 10) 18848 | -5/Upper Caves | Entered another Upper Caves area 19272 | -5/Upper Caves | Ambushed by wild Derelicts 19432 | -5/Upper Caves | Discovered new exit (range 5) 19434 | -5/Upper Caves | Attracted the attention of an 0b10 checkpoint 19440 | -5/Upper Caves | Entered Zhirov 19442 | -5/Zhirov | Discovered new exit (range 3) 19481 | -5/Zhirov | Met Zhirov 19518 | -5/Zhirov | Learned location of Quarantine (-2) 19518 | -5/Zhirov | Learned location of Testing (-3) 19518 | -5/Zhirov | Learned location of Command (-1) 19527 | -5/Zhirov | Zhirov requested help retrieving the SGEMP Prototype 19554 | -5/Zhirov | Found Alien Artifact 19573 | -5/Zhirov | Found Alien Artifact 19574 | -5/Zhirov | Identified Integrated Reactor 19574 | -5/Zhirov | Installed Integrated Reactor, increased core energy generation (+10) 19744 | -5/Zhirov | Entered Proximity Caves 20006 | -4/Proximity Caves | Build established: Gladiator 20048 | -4/Proximity Caves | Destroyed 7 combat bots 20056 | -4/Proximity Caves | Lost 8 parts (8n) 20069 | -4/Proximity Caves | System corruption reached 10% 20362 | -4/Proximity Caves | Build established: Scavenger-Gladiator 20485 | -4/Proximity Caves | Lost 3 parts (3u) 20522 | -4/Proximity Caves | Spotted B-86 Titan 20531 | -4/Proximity Caves | Attracted the attention of an 0b10 checkpoint 20957 | -4/Proximity Caves | Discovered new exit (range 13) 21006 | -4/Proximity Caves | Entered Factory 21006 | -4/Factory | Evolved 2 slots: Utility x2 21007 | -4/Factory | Identified exit to Armory 21007 | -4/Factory | Identified exit to Research 21296 | -4/Factory | Build established: Hacker-Gladiator 21357 | -4/Factory | Lost 3 parts (2u1w) 21959 | -4/Factory | Build established: Scavenger-Gladiator 22096 | -4/Factory | Garrison activated, responded to threat 22338 | -4/Factory | Entered Armory 22368 | -4/Armory | Lost 8 parts (1p4n2u1w) 22452 | -4/Armory | Watched by a mysterious "MATRIX" hacker 22471 | -4/Armory | Build established: Hacker-Gladiator 22702 | -4/Armory | Learned Quarantine stockpile data 22777 | -4/Armory | Learned location of 1 exit from Upper Caves 22833 | -4/Armory | Identified Transdimensional Reconstructor 22833 | -4/Armory | Warped through subspace to slip node 22833 | -4/Armory | Discovered new exit (range 1) 22901 | -4/Armory | Learned Factory stockpile data 22943 | -4/Armory | Entered Lab 22943 | -4/Lab | Discovered exit to Research (range 9) 22957 | -4/Lab | Hidden lab's door opened automatically 22957 | -4/Lab | Sensor layout match revealed 22958 | -4/Lab | Gained access to the hidden lab's interior 23003 | -4/Lab | Found Alien Artifact 23003 | -4/Lab | Identified Core Regenerator 23003 | -4/Lab | Used Core Regenerator, restored core integrity (+287) 23011 | -4/Lab | Found Alien Artifact 23011 | -4/Lab | Identified Integrated Dissipator 23011 | -4/Lab | Installed Integrated Dissipator, increased core heat dissipation (+20) 23021 | -4/Lab | Found Transdimensional Reconstructor 23036 | -4/Lab | Found Alien Artifact 23067 | -4/Lab | Found Prototype Hackware 23071 | -4/Lab | Found Prototype Device 23071 | -4/Lab | Identified AEGIS Remote Shield 23094 | -4/Lab | Build established: Hacker-Tank 23196 | -4/Lab | Entered Research 23196 | -3/Research | Evolved 2 slots: Power x1, Propulsion x1 23396 | -3/Research | Revision forces began assault on 0b10 23439 | -3/Research | Met up with Revision 17++ 23596 | -3/Research | Discovered new exit (range 16) 23620 | -3/Research | Identified exit to Testing 23741 | -3/Research | Found Prototype Processor 23741 | -3/Research | Identified Spectral Analyzer 23896 | -3/Research | Research terminal network offline 24472 | -3/Research | Spotted Striker 24477 | -3/Research | Destroyed Striker 24814 | -3/Research | Build established: Hacker-Gunner 25150 | -3/Research | Spotted Striker 25171 | -3/Research | Warped through subspace 25191 | -3/Research | Identified exit to Garrison 25191 | -3/Research | Entered Garrison 25307 | -3/Garrison | Crushed by falling debris 25307 | -3/Garrison | System corruption reached 10% 25310 | -3/Garrison | Build established: Scavenger-Gunner 25338 | -3/Garrison | Lost 3 parts (1p1u1w) 25383 | -3/Garrison | Triggered checkpoint 25418 | -3/Garrison | Garrison Relay disabled 25599 | -3/Garrison | Triggered checkpoint 25792 | -3/Garrison | Build established: Scavenger-Tank 25863 | -3/Garrison | Discovered new exit (range 11) 25874 | -3/Garrison | Attempted to access garrison exit controls, blocked by remote lockdown 25940 | -3/Garrison | Installed Relay Interface Framework 25963 | -3/Garrison | Triggered checkpoint 26022 | -3/Garrison | Garrison Relay disabled 26111 | -3/Garrison | Triggered checkpoint 26127 | -3/Garrison | Triggered checkpoint 26363 | -3/Garrison | Discovered new exit (range 11) 26374 | -3/Garrison | Entered Research 26624 | -3/Research | First assault squad dispatched 26695 | -3/Research | Build established: Scavenger-Skirmisher 26967 | -3/Research | Found Prototype Device 26967 | -3/Research | Identified Exp. EM Disruption Field 27074 | -3/Research | Found Gamma Bomb Array 27088 | -3/Research | Found Prototype Hackware 27193 | -3/Research | Found Adv. Powered Armor 27288 | -3/Research | Identified exit to Garrison 27288 | -3/Research | Entered Garrison 27362 | -3/Garrison | Triggered checkpoint 27375 | -3/Garrison | Garrison Relay disabled 27684 | -3/Garrison | Spotted B-86 Titan 27684 | -3/Garrison | Spotted B-86 Titan 27821 | -3/Garrison | Spotted B-86 Titan 27821 | -3/Garrison | Triggered checkpoint 27858 | -3/Garrison | Triggered checkpoint 27862 | -3/Garrison | Core integrity fell below 50% 27871 | -3/Garrison | Self-destructed Last Messages --------------- 27833_ Myomer Leg+ destroyed. 27833_ G-67 Veteran suffers critical hit (Burn). 27836_ Myomer Leg+ destroyed. 27843_ Railgun destroyed. 27847_ Kicked G-67 Veteran out of the way. 27850_ Lgt. Quantum Reactor destroyed. 27851_ System corrupted: Component data lost. 27851_ S-43 Plague destroyed. 27857_ Myomer Leg+ destroyed. 27858_ Beams of light sweep through the air. An alarm sounds. 27865_ S-43 Plague destroyed. 27866_ System corrupted: Hyp. Coil Gun rejected. 27866_ Acquired Hyp. Coil Gun. 27867_ L-61 Swordsman springs to life. 27869_ Field Recycling Unit collects Lgt. Antimatter Reactor+, recycling 6 matter... 27869_ Kicked S-43 Plague. 27870_ Kicked S-43 Plague out of the way. 27871_ Myomer Leg+ destroyed. Map ----- +----------------------------------------------------+ | ??????????????????????????????????????????????? | | ??????????????????????????????????????????????? | | ??????????????????????????????????????????????? | | ??????????????????????????????????????????????? | | ??????????????????????????????????????????????? | | ??????????????????????????????????????????????? | | ??????????????????????????????????????????????? | | ??????????????????????????????????????????????? | | ??????????????????????????????????????????????? | | ??????????????????????????????????????????????? | | ???????????????????????????????? ???????????? | | ???????????????????????????????? #???????#### | | ???????????????????????????????? #???????! | | ???????????????????????????????# #???????! | | ???????????????????????????????# #???????! | | ????????????????????????????C??# #??????? | | ???????????????????????????????# #?####??! | | ??????????????????????????????? #?#"""??! | | ??????????????????????????????? #?#" "??! | | ???????????????????????????????# #?#" "??# # | | ???????????????????????????????# #?#" "??# # | | ???????????????????????????????# #?? ??# # | | ???????????????????????????????# #??# #??# # | | ????????######################## #### #### # | | ????????# l s ss p # # | | ????????# l sl@l g gg #gg g # | | ????????#### ###### ##### ##g #### #### # | | ??????????#"""??????# #???# ## #??# #??# # | | ??????????###???????# #???##g### #??# #??# # | | ????????????????????! #????????# #??# #??# # | | ????????????????????! #????????# #??# #??# # | | ????????????????????! #????????# #??# #??# # | | ????????????????????###????????# g####/####""# | | ???????????????????????????????# =gggBB | | ???????????????????????????????# [YgBB | | ???????????????????????????????# | | ???????????????????????????????############ # | | ??????????????????????????????????????????#" " | | ????????????????????????????????????????? "%" | | ????????????????????????????????????????# " | | ????????????????????????????????????????# | | ????????????????????????????????????????# | | ????????????????????????????????????????### # | | ??????????????????????????????????????????# # | | ??????????????????????????????????????????# | | ??????????????????????????????????????????# | | ??????????????????????????????????????????# | | ??????????????????????????????????????????# # | | ??????????????????????????????????????????# ? | | ??????????????????????????????????????????# ? | +----------------------------------------------------+ Best States ------------- Heat Dissipation 66 Energy Generation 52 Energy Capacity 540 Matter Stores 300 Matter Capacity 300 Sight Range 16 Robot Scan Range 16 Terrain Scan Range 14 Terrain Scan Density 210 Jamming Range 12 Armor Coverage 1200 Resistance: TH 25 Resistance: EM 25 Propulsion Shielding 66 Weapon Shielding 90 Evasion (%) 80 Targeting Accuracy 6 Melee Accuracy 16 Target Analysis 8 Core Analysis 6 Recoil Reduction 6 Matter Filtering 30 Offensive Hacking 38 Defensive Hacking 20 Authchip Count 5 Item Schematics ----------------- Hcp. Storage Unit | -9/Materials | Hacked Actuator Array | -7/Factory | Scanalyzed Carbon-fiber Leg | -7/Factory | Scanalyzed Imp. Actuator Array | -5/Factory | Hacked Power Sword | -5/Factory | Hacked Assault Drone Bay | -5/Zhirov | Free Exp. Heat Sink | -5/Zhirov | Free Exp. Optical Array | -5/Zhirov | Free Imp. Arc Thrower | -5/Zhirov | Free Adv. Heavy Siege Treads | -4/Armory | Hacked Robot Schematics ------------------ None Fabricated ------------ Quantum Reactor | x2 | -5/Factory | Preloaded Power Sword | x2 | -5/Factory Repaired ---------- Lgt. Treads | 8% | -8/Materials Lgt. Treads | 45% | -8/Materials Studied --------- Carbon-fiber Leg | -7/Factory | Hacked Myomer Leg | -3/Research | Hacked Antimatter Reactor | -3/Research | Hacked Lgt. Antimatter Reactor | -3/Research | Hacked Alien Tech Used ----------------- Integrated Reactor Transdimensional Reconstructor Core Regenerator Integrated Dissipator Achievements -------------- None Challenges ------------ None Game ------ Seed CloakCarbideCannon Manual? 0 Play Time 03:27:42 Cumulative 437.1 hours Start 2026.07.11 @ 04:37:03 End 2026.07.11 @ 09:34:26 Sessions 1 Manual Loads 0 Difficulty Rogue Special Mode None Game No. 400 Rogue 400 Adventurer 0 Explorer 0 Win Type - Total 11 Types 7/0/2/1/0/0/0/0/0/1 Lore% 61 Gallery% 68 Achievement% 64 Wizard Run 0 Options --------- Layout 1 ASCII 0 Keyboard 0 Movement Mouse Keybinds 0 Fullscreen 2 Font 24/Cog Map View 50x35 Zoom Use 15% Tactical HUD 1 Map Filters NONE Filters NONE Steam 1 RUN: 59287b47-dfed-4270-99e6-275ab7efafef